Workbook

Sheet LES DETTE!
D123: Mengde: | E123: x | F123: Sats: | G123: Sum: | H123: % | I123: Sos. utg. | L123: Fradr. MVA:
A124: 11-1130 | B124: PRODUKSJONSASSISTENTER | C124: Per Hansen | D124: 60 | E124: 1 | F124: 800 | G124: =IF(E124=0,(IF(D124=0,F124,D124*F124)),(IF(D124=0,F124,D124*E124*F124))) -> 48000 | H124: 26 | I124: =IF(H124<>0,(G124*H124)/100,0) -> 12480 | L124: =IF(E124=mva,G124-(G124/mva),"") -> 
A125: 11-1131 | B125: - OVERTID PROD. ASSISTENTER | C125: 1 1/2 t./dag | D125: 0.3 | F125: =IF(D125=0,0,+G124) -> 48000 | G125: =IF(E125=0,(IF(D125=0,F125,D125*F125)),(IF(D125=0,F125,D125*E125*F125))) -> 14400 | H125: 26 | I125: =IF(H125<>0,(G125*H125)/100,0) -> 3744 | L125: =IF(E125=mva,G125-(G125/mva),"") -> 
A126: 31-9074 | B126: MAT V/LOCATIONOPPTAK | C126: 25 stk. i 20 dager | D126: 25 | E126: 20 | F126: 50 | G126: =IF(E126=0,(IF(D126=0,F126,D126*F126)),(IF(D126=0,F126,D126*E126*F126))) -> 25000 | L126: =IF(E126=mva,G126-(G126/mva),"") -> 
A127: 38-6810 | B127: KAMERAUTSTYR | C127: 8 uker | D127: 8 | F127: 25000 | G127: =IF(E127=0,(IF(D127=0,F127,D127*F127)),(IF(D127=0,F127,D127*E127*F127))) -> 200000 | K127: x | L127: =IF(K127<>"",(IF(D127=mva,(G127/mva)*MVAsats%,G127*MVAsats%)),"" ) -> 50000

Sheet OM OVERTID
A1: % SATSER OVERTID
A3: Følgende % satser kan benyttes for beregning av overtid.
A4: Ved å legge inn prosentsatsen, som f. eks. " 30", i kolonnen for Mengde:,
A5: beregnes overtiden automatisk basert på normalhonoraret fra linjen over:
F7: Mengde: | G7: x | H7: Sats: | I7: Sum: | J7: % | K7: Sos. utg.
A8: 11-1130 | B8: PRODUKSJONSASSISTENTER | E8: Per Hansen | F8: 60 | H8: 1000 | I8: =IF(G8=0,(IF(F8=0,H8,F8*H8)),(IF(F8=0,H8,F8*G8*H8))) -> 60000 | J8: 26 | K8: =IF(J8<>0,(I8*J8)/100,0) -> 15600
A9: 11-1131 | B9: - OVERTID PROD. ASSISTENTER | E9: 1 1/2 t./dag | F9: 0.3 | H9: =IF(F9=0,0,+I8) -> 60000 | I9: =IF(G9=0,(IF(F9=0,H9,F9*H9)),(IF(F9=0,H9,F9*G9*H9))) -> 18000 | J9: 26 | K9: =IF(J9<>0,(I9*J9)/100,0) -> 4680
A13: Overtidstimer pr. dag: | B13: Tilsv. % av dagshonorar
D14: Beregning;
A15: 1 | B15: =(1/7.5)*1.5*A15 -> 0.2 | D15: 1t. 50%
A16: 1.5 | B16: =(1/7.5)*1.5*A16 -> 0.3 | D16: 1 1/2t. 50%
A17: 2 | B17: =(1/7.5)*1.5*A17 -> 0.4 | D17: 2t. 50%
A18: 2.5 | B18: =(1/7.5)*1.5*A18 -> 0.5 | D18: 2 1/2t. 50%
A19: 3 | B19: =(1/7.5)*1.5*A19 -> 0.6 | D19: 3t. 50%
A20: 3.5 | B20: =(1/7.5)*1.5*3+(1/7.5)*2*(A20-3) -> 0.7333333333 | D20: 3t. 50% + 1/2 t. 100%
A21: 4 | B21: =(1/7.5)*1.5*3+(1/7.5)*2*(A21-3) -> 0.8666666667 | D21: 3t. 50% + 1 t. 100%
A22: 4.5 | B22: =(1/7.5)*1.5*3+(1/7.5)*2*(A22-3) -> 1 | D22: 3t. 50% + 1 1/2 t. 100%
A23: 5 | B23: =(1/7.5)*1.5*3+(1/7.5)*2*(A23-3) -> 1.133333333 | D23: 3t. 50% + 2 t. 100%
A25: Vær klar over at overtidenprosenten på denne måte blir beregnet av hele honoraret, slik at for funksjoner
A26: med langt forarbeid, hvor det ikke forutsettes samme overtid hele perioden, må prosentsatsen reduseres tilsvarende.
A28: Eks.: For en rekvisitør med 30 dagers forarbeid og 30 dagers opptak, hvor det er forutsatt i snitt 2 timer
A29: overtid i opptaksperioden, brukes 40% / 2 = 20 %.
A31: Ved produksjoner med mye nattopptak eller eller helgearbeid som f. eks. ved 6 dagers opptaksuke,
A32: må % satsen justeres for å gjenspeile de ekstra kostnader dette vil medføre.

Sheet FORSIDE
B8: PROSJEKTKALKYLE
B14: Prosjekt: | C14: =FORUTSETNINGER!C4 -> 0
E38: Dato: | F38: =FORUTSETNINGER!C8 -> 00:00:00

Sheet FORUTSETNINGER
N1: =1+(E40/100) -> 1
B2: BUDSJETTFORUTSETNINGER: | N2: =1+(E41/100) -> 1.25
N3: =1+(E42/100) -> 1.08
B4: Prosjektnavn:
B6: Prod. selskap:
B8: Kalkyle datert:
B10: Kalkulert av:
B12: Visningsformat | D12: : | E12: DCP
B13: Opptaksformat film | D13: : | F13: mm
B14: Opptaksformat digital/video | D14: :
B16: Oppt. dager studio | D16: : | E16: 0 | F16: dager
B17: Oppt. dager loc. uten reise | D17: : | E17: 0 | F17: daqer
B18: Oppt. dager loc. med reise | D18: : | E18: 0 | F18: dager
B19: Totalt opptaksdager | D19: : | E19: =SUM(E16:E18) -> 0 | F19: dager
B20: Reisedager | D20: : | E20: 0 | F20: dager
B21: Total opptaksperiode | D21: : | E21: =E19+E20 -> 0 | F21: dager / | G21: =Opptak/J21 -> 0 | H21: uker (v/ | J21: 5 | K21: dagers uke)
B23: Beregn. råfilmforbruk | D23: : | E23: 0 | F23: meter
B25: Beregn. visningslengde | D25: : | E25: 0 | F25: minutter
B27: Klippetid | D27: : | E27: 0 | F27: uker
B28: Lydetterarbeid | D28: : | E28: 0 | F28: uker
B29: Lydmix | D29: : | E29: 0 | F29: uker
B31: Planlagt opptaksstart | D31: : | E31: 2008-05-01
B32: Planlagt opptaksslutt | D32: : | E32: =IF(E31,E31+(G21*7),"") -> 2008-05-01
B33: Start klipp | D33: : | E33: 2008-08-01
B34: Ferdig klipp | D34: : | E34: =IF(E33,E33+(E27*7),"") -> 2008-08-01
B35: Start lydetterarbeid | D35: : | E35: 2008-11-01
B36: Ferdig lydmix | D36: : | E36: =IF(E35,E35+(E28*7)+(E29*7)-3,"") -> 2008-10-29
B37: A-kopi | D37: : | E37: 2009-02-01
B38: Antatt premiere | D38: : | E38: 2009-04-01
B41: Standard MVA sats | D41: : | E41: 25 | F41: %
B42: Lav MVA sats, persontransport | D42: : | E42: 8 | F42: %
B43: Sos. utgifter beregnet med | D43: : | E43: 26 | F43: %
B45: Valuta: | C45: Kurs:
B46: SEK | C46: 0.91
B47: DEK | C47: 1.1
B48: USD | C48: 5.5
B49: GBP | C49: 11.98
B50: EURO | C50: 8.21

Sheet SAMMENDRAG
B2: KALKYLESAMMENDRAG
B4: Prosjekt : | D4: =FORUTSETNINGER!C4 -> 0
B6: Dato : | D6: =FORUTSETNINGER!C8 -> 00:00:00
H8: Fradr. MVA:
B9: 10 | C9: Manuskriptutvikling | E9: =ROUND(Sum_10,0) -> 0 | H9: =Mva_10 -> 0
B10: 11 | C10: Prosjektutvikling | E10: =ROUND(Sum_11,0) -> 0 | H10: =Mva_11 -> 0
C11: TOTALE UTVIKLINGSKOSTNADER | E11: '---------> | F11: =SUM(E9:E10) -> 0
B12: 21 | C12: Forarbeid | E12: =ROUND(Sum_21,0) -> 0 | H12: =Mva_21 -> 0
B13: 31 | C13: Produksjon | E13: =ROUND(Sum_31,0) -> 0 | H13: =Mva_31 -> 0
B14: 32 | C14: Regi | E14: =ROUND(Sum_32,0) -> 0 | H14: =Mva_32 -> 0
B15: 33 | C15: Dekor | E15: =ROUND(Sum_33,0) -> 0 | H15: =Mva_33 -> 0
B16: 34 | C16: Rekvisitt | E16: =ROUND(Sum_34,0) -> 0 | H16: =Mva_34 -> 0
B17: 35 | C17: Special effects | E17: =ROUND(Sum_35,0) -> 0 | H17: =Mva_35 -> 0
B18: 36 | C18: Kostyme | E18: =ROUND(Sum_36,0) -> 0 | H18: =Mva_36 -> 0
B19: 37 | C19: Sminke | E19: =ROUND(Sum_37,0) -> 0 | H19: =Mva_37 -> 0
B20: 38 | C20: Foto | E20: =ROUND(Sum_38,0) -> 0 | H20: =Mva_38 -> 0
B21: 39 | C21: Lys | E21: =ROUND(Sum_39,0) -> 0 | H21: =Mva_39 -> 0
B22: 40 | C22: Grip | E22: =ROUND(Sum_40,0) -> 0 | H22: =Mva_40 -> 0
B23: 41 | C23: Opptakslyd | E23: =ROUND(Sum_41,0) -> 0 | H23: =Mva_41 -> 0
B24: 42 | C24: Skuespillere | E24: =ROUND(Sum_42,0) -> 0 | H24: =Mva_42 -> 0
B25: 44 | C25: Reiser/transport | E25: =ROUND(Sum_44,0) -> 0 | H25: =Mva_44 -> 0
C26: TOTALE OPPTAKSKOSTNADER | E26: '---------> | F26: =SUM(E12:E25) -> 0
B27: 51 | C27: Produksjon etterarbeid | E27: =ROUND(Sum_51,0) -> 0 | H27: =Mva_51 -> 0
B28: 52 | C28: Klipp | E28: =ROUND(Sum_52,0) -> 0 | H28: =Mva_52 -> 0
B29: 53 | C29: Lydetterabeid | E29: =ROUND(Sum_53,0) -> 0 | H29: =Mva_53 -> 0
B30: 54 | C30: Musikk | E30: =ROUND(Sum_54,0) -> 0 | H30: =Mva_54 -> 0
B31: 55 | C31: Digitale effekter | E31: =ROUND(Sum_55,0) -> 0 | H31: =Mva_55 -> 0
B32: 56 | C32: Bilde etterarbeid / laboratorium | E32: =ROUND(Sum_56,0) -> 0 | H32: =Mva_56 -> 0
C33: TOTALE ETTERARBEIDSKOSTNADER | E33: '---------> | F33: =SUM(E27:E32) -> 0
B34: 61 | C34: Administrasjon | E34: =Sum_61 -> 0 | H34: =Mva_61 -> 0
E35: '---------> | F35: =E34 -> 0
C36: NETTO PRODUKSJONSKOSTNADER | F36: =F11+F26+F33+F35 -> 0
B37: 62 | C37: Uforutsette utgifter | E37: =IF(F37,F37/F36,"") ->  | F37: =ROUND(Sum_62,0) -> 0
C38: TOTALE PRODUKSJONSKOSTNADER | F38: =F36+F37 -> 0 | H38: =SUM(H9:H34) -> 0

Sheet KALKYLE
H2: =TOTAL -> 0 | N2: =FORUTSETNINGER!$N$2 -> 1.25
A3: v. 5.1 | B3: KALKYLE | C3: Tekst: | D3: Mengde: | E3: x | F3: Sats: | G3: Sum: | H3: % | I3: Sos. utg. | L3: Fradr. MVA:
L6: X
A7: 10 MANUSKRIPTUTVIKLING | D7: Mengde: | E7: x | F7: Sats: | G7: Sum: | H7: % | I7: Sos. utg. | L7: Fradr. MVA:
A8: 101010 | B8: FILMRETT (INKL. OPSJONER) | G8: =IF(X=0,(IF(Me=0,Sa,Me*Sa)),(IF(Me=0,Sa*X,Me*X*Sa))) -> 0 | H8: =IF(Sum,Sos,0) -> 0 | I8: =IF(Prosent<>0,(Sum*Prosent)/100,0) -> 0 | L8: =IF(FMVA<>"",(IF(X=mva,(Sum/mva)*MVAsats%,Sum*MVAsats%)),"" ) -> 
A9: 101011 | B9: SYNOPSIS | G9: =IF(X=0,(IF(Me=0,Sa,Me*Sa)),(IF(Me=0,Sa*X,Me*X*Sa))) -> 0 | H9: 0 | I9: =IF(Prosent<>0,(Sum*Prosent)/100,0) -> 0 | L9: =IF(FMVA<>"",(IF(X=mva,(Sum/mva)*MVAsats%,Sum*MVAsats%)),"" ) -> 
A10: 101012 | B10: TREATMENT | G10: 0 | H10: 0 | I10: 0
A11: 101013 | B11: MANUSKRIPT | G11: 0 | H11: 0 | I11: 0
A12: 101014 | B12: DIALOG | G12: 0 | H12: 0 | I12: 0
A13: 101019 | B13: UTSKRIVING | G13: 0 | H13: 0 | I13: 0
A14: 101110 | B14: PRODUSENT | G14: 0 | H14: 0 | I14: 0
A15: 101218 | B15: DRAMATURG | G15: 0 | H15: 0 | I15: 0
A16: 104010 | B16: KONSULENTER | G16: 0 | H16: 0 | I16: 0
A17: 104016 | B17: OVERSETTELSE | G17: 0 | H17: 0 | I17: =IF(H17<>0,(G17*H17)/100,0) -> 0
A18: 104090 | B18: ANNET PERSONALE | G18: 0 | H18: 0 | I18: =IF(H18<>0,(G18*H18)/100,0) -> 0
A19: 104091 | B19: - OVERTID ANNET PERSONALE | G19: 0 | H19: 0 | I19: =IF(H19<>0,(G19*H19)/100,0) -> 0
A20: 104095 | B20: SOSIALE UTGIFTER | G20: =SUM(I8:I19) -> 0 | I20: <-------'
A21: 109010 | B21: LEIE KONTORER | G21: =IF(X=0,(IF(Me=0,Sa,Me*Sa)),(IF(Me=0,Sa*X,Me*X*Sa))) -> 0
A22: 109013 | B22: PRØVEKINO/VIDEOPROJEKSJON | G22: 0
A23: 109022 | B23: KONTORREKVISITA | G23: 0
A24: 109029 | B24: MANGFOLDIGGJØRING | G24: 0
A25: 109060 | B25: BAKGRUNNSMATERIELL | G25: 0
A26: 109061 | B26: LEIE FILMER/VIDEO | G26: 0
A27: 109069 | B27: ANDRE KOSTNADER | G27: 0
A28: 109070 | B28: REISEUTGIFTER | G28: 0
A29: 109072 | B29: HOTELLOPPHOLD | G29: 0
A30: 109073 | B30: DAGPENGER/DIETTER | G30: 0
A31: 109078 | B31: MØTEKOSTNADER | G31: 0
A32: 109093 | B32: TAXI/BUDBIL | G32: 0
A33: . | F33: SUM | G33: =SUM(G8:G32) -> 0 | L33: =SUM(L7:L32) -> 0
A35: 11 PROSJEKTUTVIKLING | D35: Mengde: | E35: x | F35: Sats: | G35: Sum: | H35: % | I35: Sos. utg. | L35: Fradr. MVA:
A36: 111015 | B36: EKSTRA TEKSTER (SANG ETC.) | G36: =IF(X=0,(IF(Me=0,Sa,Me*Sa)),(IF(Me=0,Sa*X,Me*X*Sa))) -> 0 | H36: =IF(Sum,Sos,0) -> 0 | I36: =IF(Prosent<>0,(Sum*Prosent)/100,0) -> 0 | L36: =IF(FMVA<>"",(IF(X=mva,(Sum/mva)*MVAsats%,Sum*MVAsats%)),"" ) -> 
A37: 111016 | B37: DREIEBOK | G37: =IF(X=0,(IF(Me=0,Sa,Me*Sa)),(IF(Me=0,Sa*X,Me*X*Sa))) -> 0 | H37: =IF(Sum,Sos,0) -> 0 | I37: =IF(Prosent<>0,(Sum*Prosent)/100,0) -> 0 | L37: =IF(FMVA<>"",(IF(X=mva,(Sum/mva)*MVAsats%,Sum*MVAsats%)),"" ) -> 
A38: 111017 | B38: STORYBOARD | G38: =IF(X=0,(IF(Me=0,Sa,Me*Sa)),(IF(Me=0,Sa*X,Me*X*Sa))) -> 0 | H38: =IF(Sum,Sos,0) -> 0 | I38: =IF(Prosent<>0,(Sum*Prosent)/100,0) -> 0 | L38: =IF(FMVA<>"",(IF(X=mva,(Sum/mva)*MVAsats%,Sum*MVAsats%)),"" ) -> 
A39: 111110 | B39: PRODUSENT | G39: =IF(X=0,(IF(Me=0,Sa,Me*Sa)),(IF(Me=0,Sa*X,Me*X*Sa))) -> 0 | H39: =IF(Sum,Sos,0) -> 0 | I39: =IF(Prosent<>0,(Sum*Prosent)/100,0) -> 0 | L39: =IF(FMVA<>"",(IF(X=mva,(Sum/mva)*MVAsats%,Sum*MVAsats%)),"" ) -> 
A40: 111116 | B40: PROSJEKTLEDER/LINE PRODUCER | G40: =IF(X=0,(IF(Me=0,Sa,Me*Sa)),(IF(Me=0,Sa*X,Me*X*Sa))) -> 0 | H40: =IF(Sum,Sos,0) -> 0 | I40: =IF(Prosent<>0,(Sum*Prosent)/100,0) -> 0 | L40: =IF(FMVA<>"",(IF(X=mva,(Sum/mva)*MVAsats%,Sum*MVAsats%)),"" ) -> 
A41: 111120 | B41: PRODUKSJONSLEDER | G41: =IF(X=0,(IF(Me=0,Sa,Me*Sa)),(IF(Me=0,Sa*X,Me*X*Sa))) -> 0 | H41: =IF(Sum,Sos,0) -> 0 | I41: =IF(Prosent<>0,(Sum*Prosent)/100,0) -> 0 | L41: =IF(FMVA<>"",(Sum*mva)-Sum,"") -> 
A42: 111124 | B42: PRODUKSJONSKOORDINATOR | G42: 0 | H42: 0 | I42: 0
A43: 111125 | B43: - OVERTID PROD. KOORDINATOR | F43: =IF(D43=0,0,+G42) -> 0 | G43: 0 | H43: 0 | I43: 0
A44: 111126 | B44: PRODUKSJONSSEKRETÆR | G44: 0 | H44: 0 | I44: 0
A45: 111127 | B45: - OVERTID PROD. SEKRETÆR | F45: =IF(D45=0,0,+G44) -> 0 | G45: 0 | H45: 0 | I45: 0
A46: 111130 | B46: PRODUKSJONSASSISTENTER | G46: 0 | H46: 0 | I46: 0
A47: 111131 | B47: - OVERTID PROD. ASSISTENTER | F47: =IF(D47=0,0,+G46) -> 0 | G47: 0 | H47: 0 | I47: 0
A48: 111140 | B48: LOCATION SCOUT | G48: 0 | H48: 0 | I48: 0
A49: 111141 | B49: - OVERTID LOCATION SCOUT | F49: =IF(D49=0,0,+G48) -> 0 | G49: 0 | H49: 0 | I49: 0
A50: 111210 | B50: REGISSØR | G50: 0 | H50: 0 | I50: 0
A51: 111214 | B51: REGIASSISTENT | G51: 0 | H51: 0 | I51: 0
A52: 111215 | B52: - OVERTID REGIASSISTENT | F52: =IF(D52=0,0,+G51) -> 0 | G52: 0 | H52: 0 | I52: 0
A53: 111310 | B53: PRODUCTION DESIGNER | G53: 0 | H53: 0 | I53: 0
A54: 111311 | B54: - OVERTID PRODUCTION DESIGNER | F54: =IF(D54=0,0,+G53) -> 0 | G54: 0 | H54: 0 | I54: 0
A55: 111610 | B55: KOSTYMEDESIGNER | G55: 0 | H55: 0 | I55: 0
A56: 111611 | B56: - OVERTID KOSTYMEDESIGNER | F56: =IF(D56=0,0,+G55) -> 0 | G56: 0 | H56: 0 | I56: 0
A57: 111810 | B57: SJEFSFOTOGRAF | G57: 0 | H57: 0 | I57: 0
A58: 111811 | B58: - OVERTID SJEFSFOTOGRAF | F58: =IF(D58=0,0,+G57) -> 0 | G58: 0 | H58: 0 | I58: 0
A59: 113210 | B59: LYDDESIGNER | G59: 0 | H59: 0 | I59: 0
A60: 113211 | B60: - OVERTID LYDDESIGNER | F60: =IF(D60=0,0,+G59) -> 0 | G60: 0 | H60: 0 | I60: 0
A61: 114010 | B61: KONSULENTER | G61: 0 | H61: 0 | I61: 0
A62: 114014 | B62: TOLK | G62: 0 | H62: 0 | I62: 0
A63: 114015 | B63: - OVERTID TOLK | F63: =IF(D63=0,0,+G62) -> 0 | G63: 0 | H63: 0 | I63: 0
A64: 114090 | B64: ANNET PERSONALE | G64: 0 | H64: 0 | I64: 0
A65: 114091 | B65: - OVERTID ANNET PERSONALE | F65: =IF(D65=0,0,+G64) -> 0 | G65: 0 | H65: 0 | I65: 0
A66: 114092 | B66: TARIFFJUSTERINGER | G66: 0 | H66: 0 | I66: 0
A67: 114095 | B67: SOSIALE UTGIFTER | G67: =SUM(I36:I66) -> 0 | I67: <-------'
A68: 116110 | B68: BREAK DOWN/PRODUKSJONSPLAN | G68: =IF(X=0,(IF(Me=0,Sa,Me*Sa)),(IF(Me=0,Sa*X,Me*X*Sa))) -> 0
A69: 116111 | B69: KALKYLE | G69: 0
A70: 118610 | B70: ADMINISTRASJONSGODTGJØRELSE | G70: 0
A71: 118620 | B71: REGNSKAP | G71: 0
A72: 118621 | B72: REVISJON | G72: 0
A73: 118622 | B73: JURIDISK ASSISTANSE | G73: 0
A74: 119010 | B74: LEIE KONTORER | G74: 0
A75: 119013 | B75: PRØVEKINO/VIDEOPROJEKSJON | G75: 0
A76: 119022 | B76: KONTORREKVISITA | G76: 0
A77: 119025 | B77: PROGRAMVARE | G77: 0
A78: 119029 | B78: MANGFOLDIGGJØRING | G78: 0
A79: 119030 | B79: TELEFON/PORTO | G79: 0
A80: 119040 | B80: ARBEIDSTILLS | G80: 0
A81: 119042 | B81: VIDEOUTSTYR | G81: 0
A82: 119044 | B82: VIDEOTAPE | G82: 0
A83: 119060 | B83: BAKGRUNNSMATERIELL | G83: 0
A84: 119061 | B84: LEIE FILMER/VIDEO | G84: 0
A85: 119069 | B85: ANDRE KOSTNADER | C85: Spesifiser her! | G85: 0
A86: 119070 | B86: REISEUTGIFTER | G86: 0
A87: 119072 | B87: HOTELLOPPHOLD | G87: 0
A88: 119073 | B88: DAGPENGER/DIETTER | G88: 0
A89: 119077 | B89: MAT V/OVERTID | G89: 0
A90: 119078 | B90: MØTEKOSTNADER | G90: 0
A91: 119081 | B91: LEIDE BILER | G91: 0
A92: 119082 | B92: SKADER LEIDE BILER | G92: 0
A93: 119083 | B93: BENSIN/OLJE ETC. | G93: 0
A94: 119084 | B94: PARKERING/BOM/FERGER | G94: 0
A95: 119085 | B95: BILGODTGJØRELSE | G95: 0
A96: 119090 | B96: LEID TRANSPORT | G96: 0
A97: 119091 | B97: LEIE AV HELIKOPTER/FLY | G97: 0
A98: 119092 | B98: LEIE BÅT/SNØSCOOTER ETC. | G98: 0
A99: 119093 | B99: TAXI/BUDBIL | G99: 0
A100: . | F100: SUM | G100: =SUM(G36:G99) -> 0 | L100: =SUM(L36:L99) -> 0
A102: 21 FORARBEID | D102: Mengde: | E102: x | F102: Sats: | G102: Sum: | H102: % | I102: Sos. utg. | L102: Fradr. MVA:
A103: 211116 | B103: PROSJEKTLEDER/LINE PRODUCER | G103: =IF(X=0,(IF(Me=0,Sa,Me*Sa)),(IF(Me=0,Sa*X,Me*X*Sa))) -> 0 | H103: =IF(Sum,Sos,0) -> 0 | I103: =IF(Prosent<>0,(Sum*Prosent)/100,0) -> 0 | L103: =IF(FMVA<>"",(Sum*mva)-Sum,"") -> 
A104: 211120 | B104: PRODUKSJONSLEDER | G104: 0 | H104: 0 | I104: 0
A105: 211124 | B105: PRODUKSJONSKOORDINATOR | G105: 0 | H105: 0 | I105: 0
A106: 211125 | B106: - OVERTID PROD. KOORDINATOR | F106: =IF(D106=0,0,+G105) -> 0 | G106: 0 | H106: 0 | I106: 0
A107: 211126 | B107: PRODUKSJONSSEKRETÆR | G107: 0 | H107: 0 | I107: 0
A108: 211127 | B108: - OVERTID PROD. SEKRETÆR | F108: =IF(D108=0,0,+G107) -> 0 | G108: 0 | H108: 0 | I108: 0
A109: 211130 | B109: PRODUKSJONSASSISTENTER | G109: 0 | H109: 0 | I109: 0
A110: 211131 | B110: - OVERTID PROD. ASSISTENTER | F110: =IF(D110=0,0,+G109) -> 0 | G110: 0 | H110: 0 | I110: 0
A111: 211140 | B111: LOCATION RESEARCH | G111: 0 | H111: 0 | I111: 0
A112: 211141 | B112: - OVERTID LOCATION RESEARCH | F112: =IF(D112=0,0,+G111) -> 0 | G112: 0 | H112: 0 | I112: 0
A113: 211210 | B113: REGISSØR | G113: 0 | H113: 0 | I113: 0
A114: 211214 | B114: REGIASSISTENT | G114: 0 | H114: 0 | I114: 0
A115: 211215 | B115: - OVERTID REGIASSISTENT | F115: =IF(D115=0,0,+G114) -> 0 | G115: 0 | H115: 0 | I115: 0
A116: 211240 | B116: CASTING | G116: 0 | H116: 0 | I116: 0
A117: 211241 | B117: - OVERTID CASTING | F117: =IF(D117=0,0,+G116) -> 0 | G117: 0 | H117: 0 | I117: 0
A118: 211310 | B118: PRODUCTION DESIGNER | G118: 0 | H118: 0 | I118: 0
A119: 211311 | B119: - OVERTID PRODUCTION DESIGNER | F119: =IF(D119=0,0,+G118) -> 0 | G119: 0 | H119: 0 | I119: 0
A120: 211610 | B120: KOSTYMEDESIGNER | G120: 0 | H120: 0 | I120: 0
A121: 211611 | B121: - OVERTID KOSTYMEDESIGNER | F121: =IF(D121=0,0,+G120) -> 0 | G121: 0 | H121: 0 | I121: 0
A122: 211810 | B122: SJEFSFOTOGRAF | G122: 0 | H122: 0 | I122: 0
A123: 211811 | B123: - OVERTID SJEFSFOTOGRAF | F123: =IF(D123=0,0,+G122) -> 0 | G123: 0 | H123: 0 | I123: 0
A124: 213210 | B124: LYDDESIGNER | G124: 0 | H124: 0 | I124: 0
A125: 213211 | B125: - OVERTID LYDDESIGNER | F125: =IF(D125=0,0,+G124) -> 0 | G125: 0 | H125: 0 | I125: 0
A126: 214010 | B126: KONSULENTER | G126: 0 | H126: 0 | I126: 0
A127: 214014 | B127: TOLK | G127: 0 | H127: 0 | I127: 0
A128: 214015 | B128: - OVERTID TOLK | F128: =IF(D128=0,0,+G127) -> 0 | G128: 0 | H128: 0 | I128: 0
A129: 214090 | B129: ANNET PERSONALE | G129: 0 | H129: 0 | I129: 0
A130: 214091 | B130: - OVERTID ANNET PERSONALE | F130: =IF(D130=0,0,+G129) -> 0 | G130: 0 | H130: 0 | I130: 0
A131: 214092 | B131: TARIFFJUSTERINGER | G131: 0 | H131: 0 | I131: 0
A132: 214095 | B132: SOSIALE UTGIFTER | G132: =SUM(I103:I131) -> 0 | I132: <-------'
A133: 218622 | B133: JURIDISK ASSISTANSE | G133: =IF(X=0,(IF(Me=0,Sa,Me*Sa)),(IF(Me=0,Sa*X,Me*X*Sa))) -> 0
A134: 219010 | B134: LEIE KONTORER | G134: 0
A135: 219013 | B135: PRØVEKINO/VIDEOPROJEKSJON | G135: 0
A136: 219014 | B136: LOKALER PRØVEFILM/PRØVER | G136: 0
A137: 219022 | B137: KONTORREKVISITA | G137: 0
A138: 219023 | B138: DATAUTSTYR | G138: 0
A139: 219025 | B139: PROGRAMVARE | G139: 0
A140: 219029 | B140: MANGFOLDIGGJØRING | G140: 0
A141: 219030 | B141: TELEFON/PORTO | G141: 0
A142: 219040 | B142: ARBEIDSTILLS | G142: 0
A143: 219042 | B143: VIDEOUTSTYR | G143: 0
A144: 219044 | B144: VIDEOTAPE | G144: 0
A145: 219060 | B145: BAKGRUNNSMATERIELL | G145: 0
A146: 219061 | B146: LEIE FILMER/VIDEO | D146: 0 | G146: 0
A147: 219063 | B147: ANNONSERING | G147: 0
A148: 219069 | B148: ANDRE KOSTNADER | C148: Spesifiser her! | G148: 0
A149: 219077 | B149: MAT V/OVERTID | G149: 0
A150: 219078 | B150: MØTEKOSTNADER | G150: 0
A151: . | F151: SUM | G151: =SUM(G103:G150) -> 0 | L151: =SUM(L103:L150) -> 0
A153: 31 PRODUKSJON | D153: Mengde: | E153: x | F153: Sats: | G153: Sum: | H153: % | I153: Sos. utg. | L153: Fradr. MVA:
A154: 311116 | B154: PROSJEKTLEDER/LINE PRODUCER | G154: =IF(X=0,(IF(Me=0,Sa,Me*Sa)),(IF(Me=0,Sa*X,Me*X*Sa))) -> 0 | H154: =IF(Sum,Sos,0) -> 0 | I154: =IF(Prosent<>0,(Sum*Prosent)/100,0) -> 0 | L154: =IF(FMVA<>"",(Sum*mva)-Sum,"") -> 
A155: 311120 | B155: PRODUKSJONSLEDER | G155: 0 | H155: 0 | I155: 0
A156: 311122 | B156: B-PRODUKSJONSLEDER | G156: 0 | H156: 0 | I156: 0
A157: 311123 | B157: - OVERTID B-PROD. LEDER | F157: =IF(D157=0,0,+G156) -> 0 | G157: 0 | H157: 0 | I157: 0
A158: 311124 | B158: PRODUKSJONSKOORDINATOR | G158: 0 | H158: 0 | I158: 0
A159: 311125 | B159: - OVERTID PROD. KOORDINATOR | F159: =IF(D159=0,0,+G158) -> 0 | G159: 0 | H159: 0 | I159: 0
A160: 311126 | B160: PRODUKSJONSSEKRETÆR | G160: 0 | H160: 0 | I160: 0
A161: 311127 | B161: - OVERTID PROD. SEKRETÆR | F161: =IF(D161=0,0,+G160) -> 0 | G161: 0 | H161: 0 | I161: 0
A162: 311130 | B162: PRODUKSJONSASSISTENTER | G162: 0 | H162: 0 | I162: 0
A163: 311131 | B163: - OVERTID PROD. ASSISTENTER | F163: =IF(D163=0,0,+G162) -> 0 | G163: 0 | H163: 0 | I163: 0
A164: 311142 | B164: LOCATION MANAGER | G164: 0 | H164: 0 | I164: 0
A165: 311143 | B165: - OVERTID LOCATION MANAGER | F165: =IF(D165=0,0,+G164) -> 0 | G165: 0 | H165: 0 | I165: 0
A166: 311150 | B166: INNSPILLINGSLEDER | G166: 0 | H166: 0 | I166: 0
A167: 311151 | B167: - OVERTID INNSPILLINGSLEDER | F167: =IF(D167=0,0,+G166) -> 0 | G167: 0 | H167: 0 | I167: 0
A168: 311152 | B168: INNSPILLINGSASSISTENTER | G168: 0 | H168: 0 | I168: 0
A169: 311153 | B169: - OVERTID INNSP. ASSISTENTER | F169: =IF(D169=0,0,+G168) -> 0 | G169: 0 | H169: 0 | I169: 0
A170: 311170 | B170: PRODUKSJONSBOKHOLDER | G170: 0 | H170: 0 | I170: 0
A171: 311171 | B171: - OVERTID PROD. BOKHOLDER | F171: =IF(D171=0,0,+G170) -> 0 | G171: 0 | H171: 0 | I171: 0
A172: 311180 | B172: CATERINGPERSONALE | G172: 0 | H172: 0 | I172: 0
A173: 311181 | B173: - OVERTID CATERINGPERSONALE | F173: =IF(D173=0,0,+G172) -> 0 | G173: 0 | H173: 0 | I173: 0
A174: 311190 | B174: ANNET PRODUKSJONSPERSONALE | G174: 0 | H174: 0 | I174: 0
A175: 311191 | B175: - OVERTID ANNET PROD. PERS. | F175: =IF(D175=0,0,+G174) -> 0 | G175: 0 | H175: 0 | I175: 0
A176: 313720 | B176: PRESSEMEDARBEIDER | G176: 0 | H176: 0 | I176: 0
A177: 313721 | B177: - OVERTID PRESSEMEDARBEIDER | F177: =IF(D177=0,0,+G176) -> 0 | G177: 0 | H177: 0 | I177: 0
A178: 314010 | B178: KONSULENTER | G178: 0 | H178: 0 | I178: 0
A179: 314012 | B179: LÆRER/BARNEVAKT | G179: 0 | H179: 0 | I179: 0
A180: 314013 | B180: - OVERTID LÆRER/BARNEVAKT | F180: =IF(D180=0,0,+G179) -> 0 | G180: 0 | H180: 0 | I180: 0
A181: 314014 | B181: TOLK | G181: 0 | H181: 0 | I181: 0
A182: 314015 | B182: - OVERTID TOLK | F182: =IF(D182=0,0,+G181) -> 0 | G182: 0 | H182: 0 | I182: 0
A183: 314020 | B183: POLITIASSISTANSE | G183: 0 | H183: 0 | I183: 0
A184: 314022 | B184: VAKTHOLD | G184: 0 | H184: 0 | I184: 0
A185: 314023 | B185: - OVERTID VAKTHOLD | F185: =IF(D185=0,0,+G184) -> 0 | G185: 0 | H185: 0 | I185: 0
A186: 314030 | B186: LOKAL ASSISTANSE | G186: 0 | H186: 0 | I186: 0
A187: 314031 | B187: - OVERTID LOKAL ASSISTANSE | F187: =IF(D187=0,0,+G186) -> 0 | G187: 0 | H187: 0 | I187: 0
A188: 314040 | B188: HOSPITANTER | G188: 0 | H188: 0 | I188: 0
A189: 314041 | B189: - OVERTID HOSPITANTER | F189: =IF(D189=0,0,+G188) -> 0 | G189: 0 | H189: 0 | I189: 0
A190: 314050 | B190: TILLITSVALGT | G190: 0 | H190: 0 | I190: 0
A191: 314052 | B191: VERNEOMBUD | G191: 0 | H191: 0 | I191: 0
A192: 314090 | B192: ANNET PERSONALE | G192: 0 | H192: 0 | I192: 0
A193: 314091 | B193: - OVERTID ANNET PERSONALE | F193: =IF(D193=0,0,+G192) -> 0 | G193: 0 | H193: 0 | I193: 0
A194: 314092 | B194: TARIFFJUSTERINGER | G194: 0 | H194: 0 | I194: 0
A195: 314095 | B195: SOSIALE UTGIFTER | G195: =SUM(I154:I194) -> 0 | I195: <-------'
A196: 316122 | B196: LEIE GARDEROBER | G196: =IF(X=0,(IF(Me=0,Sa,Me*Sa)),(IF(Me=0,Sa*X,Me*X*Sa))) -> 0
A197: 316130 | B197: LOCATIONLEIE | G197: 0
A198: 316131 | B198: OPPHOLDSROM LOCATION | G198: 0
A199: 316132 | B199: TOILETTVOGN | G199: 0
A200: 316133 | B200: LOC. BUSS/CAMPINGVOGN/HUSBIL | G200: 0
A201: 316134 | B201: VISNINGSUTSTYR/LOKAL KINO | G201: 0
A202: 316135 | B202: LOCATIONUTSTYR | G202: 0
A203: 316138 | B203: SKILTING/PARKERINGSRESERVERING | G203: 0
A204: 316140 | B204: MEDISINSK BEHANDLING | G204: 0
A205: 316141 | B205: SPESIALBEKLEDNING STAB | G205: 0
A206: 316142 | B206: VASK/RENS PRIVATTØY | G206: 0
... 712 more rows

Sheet SPESIFIKASJONER
A1: 44 REISER TRANSPORT SPESIFIKASJONER
A3: 449070 | B3: Reiseutgifter | C3: Mengde: | D3: x | E3: Sats: | F3: Sum: | I3: Fradr. MVA:
F4: =IF(D4=0,(IF(C4=0,E4,C4*E4)),(IF(C4=0,E4*D4,C4*D4*E4))) -> 0 | I4: =IF(H4<>"",(F4*mvalav)-F4,"") -> 
F5: =IF(D5=0,(IF(C5=0,E5,C5*E5)),(IF(C5=0,E5*D5,C5*D5*E5))) -> 0
F6: =IF(D6=0,(IF(C6=0,E6,C6*E6)),(IF(C6=0,E6*D6,C6*D6*E6))) -> 0
F7: =IF(D7=0,(IF(C7=0,E7,C7*E7)),(IF(C7=0,E7*D7,C7*D7*E7))) -> 0
F8: =IF(D8=0,(IF(C8=0,E8,C8*E8)),(IF(C8=0,E8*D8,C8*D8*E8))) -> 0
F9: 0
F10: =IF(D10=0,(IF(C10=0,E10,C10*E10)),(IF(C10=0,E10*D10,C10*D10*E10))) -> 0
F11: =IF(D11=0,(IF(C11=0,E11,C11*E11)),(IF(C11=0,E11*D11,C11*D11*E11))) -> 0
F12: =IF(D12=0,(IF(C12=0,E12,C12*E12)),(IF(C12=0,E12*D12,C12*D12*E12))) -> 0
F13: 0
F14: 0
F15: 0
F16: =IF(D16=0,(IF(C16=0,E16,C16*E16)),(IF(C16=0,E16*D16,C16*D16*E16))) -> 0
F17: 0
F18: 0
F19: 0
F20: 0
F21: 0
F22: 0
F23: 0
A24: , | E24: SUM | F24: =SUM(F4:F23) -> 0 | I24: =SUM(I4:I23) -> 0
A27: 449072 | B27: Hotellopphold | C27: Mengde: | D27: x | E27: Sats: | F27: Sum:
F28: =IF(D28=0,(IF(C28=0,E28,C28*E28)),(IF(C28=0,E28*D28,C28*D28*E28))) -> 0 | I28: =IF(H28<>"",(F28*mva)-F28,"") -> 
F29: =IF(D29=0,(IF(C29=0,E29,C29*E29)),(IF(C29=0,E29*D29,C29*D29*E29))) -> 0 | I29: =IF(H29<>"",(F29*mva)-F29,"") -> 
F30: =IF(D30=0,(IF(C30=0,E30,C30*E30)),(IF(C30=0,E30*D30,C30*D30*E30))) -> 0
F31: 0
F32: 0
F33: =IF(D33=0,(IF(C33=0,E33,C33*E33)),(IF(C33=0,E33*D33,C33*D33*E33))) -> 0
F34: =IF(D34=0,(IF(C34=0,E34,C34*E34)),(IF(C34=0,E34*D34,C34*D34*E34))) -> 0
F35: =IF(D35=0,(IF(C35=0,E35,C35*E35)),(IF(C35=0,E35*D35,C35*D35*E35))) -> 0
F36: 0
F37: 0
F38: 0
F39: 0
F40: 0
F41: 0
F42: 0
F43: 0
F44: 0
F45: 0
F46: 0
F47: 0
E48: SUM | F48: =SUM(F28:F47) -> 0 | I48: =SUM(I28:I47) -> 0
A51: 449073 | B51: Dagpenger/dietter | C51: Mengde: | D51: x | E51: Sats: | F51: Sum:
F52: =IF(D52=0,(IF(C52=0,E52,C52*E52)),(IF(C52=0,E52*D52,C52*D52*E52))) -> 0 | I52: =IF(H52<>"",(F52*mvalav)-F52,"") -> 
F53: =IF(D53=0,(IF(C53=0,E53,C53*E53)),(IF(C53=0,E53*D53,C53*D53*E53))) -> 0
F54: 0
F55: =IF(D55=0,(IF(C55=0,E55,C55*E55)),(IF(C55=0,E55*D55,C55*D55*E55))) -> 0
F56: =IF(D56=0,(IF(C56=0,E56,C56*E56)),(IF(C56=0,E56*D56,C56*D56*E56))) -> 0
F57: 0
F58: 0
F59: 0
F60: 0
F61: 0
F62: 0
F63: =IF(D63=0,(IF(C63=0,E63,C63*E63)),(IF(C63=0,E63*D63,C63*D63*E63))) -> 0
F64: =IF(D64=0,(IF(C64=0,E64,C64*E64)),(IF(C64=0,E64*D64,C64*D64*E64))) -> 0
F65: =IF(D65=0,(IF(C65=0,E65,C65*E65)),(IF(C65=0,E65*D65,C65*D65*E65))) -> 0
F66: 0
F67: 0
F68: 0
F69: 0
F70: 0
F71: 0
E72: SUM | F72: =SUM(F52:F71) -> 0 | I72: =SUM(I52:I71) -> 0
A75: 449082 | B75: Leide biler | C75: Mengde: | D75: x | E75: Sats: | F75: Sum:
F76: =IF(D76=0,(IF(C76=0,E76,C76*E76)),(IF(C76=0,E76*D76,C76*D76*E76))) -> 0 | I76: =IF(H76<>"",(F76*mva)-F76,"") -> 
F77: =IF(D77=0,(IF(C77=0,E77,C77*E77)),(IF(C77=0,E77*D77,C77*D77*E77))) -> 0 | I77: =IF(H77<>"",(F77*mva)-F77,"") -> 
F78: =IF(D78=0,(IF(C78=0,E78,C78*E78)),(IF(C78=0,E78*D78,C78*D78*E78))) -> 0
F79: 0
F80: 0
F81: 0
F82: 0
F83: 0
F84: 0
F85: 0
F86: 0
F87: 0
F88: 0
F89: 0
F90: 0
F91: 0
F92: 0
F93: 0
F94: 0
F95: 0
E96: SUM | F96: =SUM(F76:F95) -> 0 | I96: =SUM(I76:I95) -> 0
A99: 449093 | B99: Taxi/budbil | C99: Mengde: | D99: x | E99: Sats: | F99: Sum:
F100: =IF(D100=0,(IF(C100=0,E100,C100*E100)),(IF(C100=0,E100*D100,C100*D100*E100))) -> 0 | I100: =IF(H100<>"",(F100*mvalav)-F100,"") -> 
F101: =IF(D101=0,(IF(C101=0,E101,C101*E101)),(IF(C101=0,E101*D101,C101*D101*E101))) -> 0 | I101: =IF(H101<>"",(F101*mvalav)-F101,"") -> 
F102: 0
F103: 0
F104: 0
F105: 0
F106: 0
F107: 0
F108: 0
F109: 0
F110: 0
F111: 0
F112: 0
F113: 0
F114: 0
F115: 0
F116: 0
F117: 0
F118: 0
F119: 0
E120: SUM | F120: =SUM(F100:F119) -> 0 | I120: =SUM(I100:I119) -> 0
A123: 449098 | B123: Frakt/spedisjon | C123: Mengde: | D123: x | E123: Sats: | F123: Sum:
F124: =IF(D124=0,(IF(C124=0,E124,C124*E124)),(IF(C124=0,E124*D124,C124*D124*E124))) -> 0 | I124: =IF(H124<>"",(F124*mva)-F124,"") -> 
F125: =IF(D125=0,(IF(C125=0,E125,C125*E125)),(IF(C125=0,E125*D125,C125*D125*E125))) -> 0 | I125: =IF(H125<>"",(F125*mva)-F125,"") -> 
F126: 0
F127: 0
F128: 0
F129: 0
F130: 0
F131: 0
F132: 0
F133: 0
F134: 0
F135: 0
F136: 0
F137: 0
F138: 0
F139: 0
F140: 0
F141: 0
F142: 0
F143: 0
E144: SUM | F144: =SUM(F124:F143) -> 0 | I144: =SUM(I124:I143) -> 0

Sheet ESTIMATSAMMENDRAG
B2: SAMMENDRAG SLUTTKOSTNADSESTIMAT
B4: Prosjekt : | D4: =FORUTSETNINGER!C4 -> 0
B6: Dato : | D6: =FORUTSETNINGER!C8 -> 00:00:00
H8: Fradr. MVA:
B9: 10 | C9: Manuskriptutvikling | E9: =ROUND(SumSK10,0) -> 0 | H9: =ESTIMAT!Mva_10 -> 0
B10: 11 | C10: Prosjektutvikling | E10: =ROUND(SumSK11,0) -> 0 | H10: =ESTIMAT!Mva_11 -> 0
C11: TOTALE UTVIKLINGSKOSTNADER | E11: '---------> | F11: =SUM(E9:E10) -> 0
B12: 21 | C12: Forarbeid | E12: =ROUND(SumSK21,0) -> 0 | H12: =ESTIMAT!Mva_21 -> 0
B13: 31 | C13: Produksjon | E13: =ROUND(SumSK31,0) -> 0 | H13: =ESTIMAT!Mva_31 -> 0
B14: 32 | C14: Regi | E14: =ROUND(SumSK32,0) -> 0 | H14: =ESTIMAT!Mva_32 -> 0
B15: 33 | C15: Dekor | E15: =ROUND(SumSK33,0) -> 0 | H15: =ESTIMAT!Mva_33 -> 0
B16: 34 | C16: Rekvisitt | E16: =ROUND(SumSK34,0) -> 0 | H16: =ESTIMAT!Mva_34 -> 0
B17: 35 | C17: Special effects | E17: =ROUND(SumSK35,0) -> 0 | H17: =ESTIMAT!Mva_35 -> 0
B18: 36 | C18: Kostyme | E18: =ROUND(SumSK36,0) -> 0 | H18: =ESTIMAT!Mva_36 -> 0
B19: 37 | C19: Sminke | E19: =ROUND(SumSK37,0) -> 0 | H19: =ESTIMAT!Mva_37 -> 0
B20: 38 | C20: Foto | E20: =ROUND(SumSK38,0) -> 0 | H20: =ESTIMAT!Mva_38 -> 0
B21: 39 | C21: Lys | E21: =ROUND(SumSK39,0) -> 0 | H21: =ESTIMAT!Mva_39 -> 0
B22: 40 | C22: Grip | E22: =ROUND(SumSK40,0) -> 0 | H22: =ESTIMAT!Mva_40 -> 0
B23: 41 | C23: Opptakslyd | E23: =ROUND(SumSK41,0) -> 0 | H23: =ESTIMAT!Mva_41 -> 0
B24: 42 | C24: Skuespillere | E24: =ROUND(SumSK42,0) -> 0 | H24: =ESTIMAT!Mva_42 -> 0
B25: 44 | C25: Reiser/transport | E25: =ROUND(SumSK44,0) -> 0 | H25: =ESTIMAT!Mva_44 -> 0
C26: TOTALE OPPTAKSKOSTNADER | E26: '---------> | F26: =SUM(E12:E25) -> 0
B27: 51 | C27: Produksjon etterarbeid | E27: =ROUND(SumSK51,0) -> 0 | H27: =ESTIMAT!Mva_51 -> 0
B28: 52 | C28: Klipp | E28: =ROUND(SumSK52,0) -> 0 | H28: =ESTIMAT!Mva_52 -> 0
B29: 53 | C29: Lydetterabeid | E29: =ROUND(SumSK53,0) -> 0 | H29: =ESTIMAT!Mva_53 -> 0
B30: 54 | C30: Musikk | E30: =ROUND(SumSK54,0) -> 0 | H30: =ESTIMAT!Mva_54 -> 0
B31: 55 | C31: Digitale effekter | E31: =ROUND(SumSK55,0) -> 0 | H31: =ESTIMAT!Mva_55 -> 0
B32: 56 | C32: Bilde etterarbeid / laboratorium | E32: =ROUND(SumSK56,0) -> 0 | H32: =ESTIMAT!Mva_56 -> 0
C33: TOTALE ETTERARBEIDSKOSTNADER | E33: '---------> | F33: =SUM(E27:E32) -> 0
B34: 61 | C34: Administrasjon | E34: =SumSK61 -> 0 | H34: =ESTIMAT!Mva_61 -> 0
E35: '---------> | F35: =E34 -> 0
C36: NETTO PRODUKSJONSKOSTNADER | F36: =F11+F26+F33+F35 -> 0
B37: 62 | C37: Uforutsette utgifter | E37: =IF(F37,F37/F36,"") ->  | F37: =ROUND(SumSK62,0) -> 0
C38: TOTALE PRODUKSJONSKOSTNADER | F38: =F36+F37 -> 0 | H38: =SUM(H9:H34) -> 0

Sheet ESTIMAT
H2: =TOTALEST -> 0 | P2: =RAPPORT!G36 -> 0
A3: SLUTTKOSTNADS-ESTIMAT | C3: Tekst: | D3: Mengde: | E3: x | F3: Sats: | G3: Sum: | H3: % | I3: Sos. utg. | L3: Fradr. MVA: | N3: Kalkyle: | P3: Bokført
P4: periode
L6: X | P6: 2004-10-25
A7: 10 MANUSKRIPTUTVIKLING | D7: Mengde: | E7: x | F7: Sats: | G7: Sum: | H7: % | I7: Sos. utg. | L7: Fradr. MVA: | N7: Kalkyle: | P7: Bokført
A8: 101010 | B8: FILMRETT (INKL. OPSJONER) | G8: =IF(X=0,(IF(Me=0,Sa,Me*Sa)),(IF(Me=0,Sa*X,Me*X*Sa))) -> 0 | H8: =IF(Sum,Sos,0) -> 0 | I8: =IF(Prosent<>0,(Sum*Prosent)/100,0) -> 0 | L8: =IF(FMVAE<>"",(Sum*mva)-Sum,"") ->  | N8: 0 | P8: =BOKFØRT!C8 -> 0 | Q8: =G8+N8+P8 -> 0
A9: 101011 | B9: SYNOPSIS | G9: 0 | H9: 0 | I9: 0 | N9: 0 | P9: =BOKFØRT!C9 -> 0 | Q9: =G9+N9+P9 -> 0
A10: 101012 | B10: TREATMENT | G10: 0 | H10: 0 | I10: 0 | N10: 0 | P10: =BOKFØRT!C10 -> 0 | Q10: 0
A11: 101013 | B11: MANUSKRIPT | G11: 0 | H11: 0 | I11: 0 | N11: 0 | P11: =BOKFØRT!C11 -> 0 | Q11: 0
A12: 101014 | B12: DIALOG | G12: 0 | H12: 0 | I12: 0 | N12: 0 | P12: =BOKFØRT!C12 -> 0 | Q12: 0
A13: 101019 | B13: UTSKRIVING | G13: 0 | H13: 0 | I13: 0 | N13: 0 | P13: =BOKFØRT!C13 -> 0 | Q13: =G13+N13+P13 -> 0
A14: 101110 | B14: PRODUSENT | G14: 0 | H14: 0 | I14: 0 | N14: 0 | P14: =BOKFØRT!C14 -> 0 | Q14: 0
A15: 101218 | B15: DRAMATURG | G15: 0 | H15: 0 | I15: 0 | N15: 0 | P15: =BOKFØRT!C15 -> 0 | Q15: 0
A16: 104010 | B16: KONSULENTER | G16: 0 | H16: 0 | I16: 0 | N16: 0 | P16: =BOKFØRT!C16 -> 0 | Q16: 0
A17: 104016 | B17: OVERSETTELSE | G17: 0 | H17: 0 | I17: =IF(H17<>0,(G17*H17)/100,0) -> 0 | N17: 0 | P17: =BOKFØRT!C17 -> 0 | Q17: 0
A18: 104090 | B18: ANNET PERSONALE | G18: 0 | H18: 0 | I18: =IF(H18<>0,(G18*H18)/100,0) -> 0 | N18: 0 | P18: =BOKFØRT!C18 -> 0 | Q18: 0
A19: 104091 | B19: - OVERTID ANNET PERSONALE | G19: 0 | H19: 0 | I19: =IF(H19<>0,(G19*H19)/100,0) -> 0 | N19: 0 | P19: =BOKFØRT!C19 -> 0 | Q19: 0
A20: 104095 | B20: SOSIALE UTGIFTER | G20: =SUM(I8:I19) -> 0 | I20: <-------' | N20: 0 | P20: =BOKFØRT!C20 -> 0 | Q20: 0
A21: 109010 | B21: LEIE KONTORER | G21: =IF(X=0,(IF(Me=0,Sa,Me*Sa)),(IF(Me=0,Sa*X,Me*X*Sa))) -> 0 | N21: 0 | P21: =BOKFØRT!C21 -> 0 | Q21: 0
A22: 109013 | B22: PRØVEKINO/VIDEOPROJEKSJON | G22: 0 | N22: 0 | P22: =BOKFØRT!C22 -> 0 | Q22: 0
A23: 109022 | B23: KONTORREKVISITA | G23: 0 | N23: 0 | P23: =BOKFØRT!C23 -> 0 | Q23: 0
A24: 109029 | B24: MANGFOLDIGGJØRING | G24: 0 | N24: 0 | P24: =BOKFØRT!C24 -> 0 | Q24: 0
A25: 109060 | B25: BAKGRUNNSMATERIELL | G25: 0 | N25: 0 | P25: =BOKFØRT!C25 -> 0 | Q25: 0
A26: 109061 | B26: LEIE FILMER/VIDEO | G26: 0 | N26: 0 | P26: =BOKFØRT!C26 -> 0 | Q26: 0
A27: 109069 | B27: ANDRE KOSTNADER | G27: 0 | N27: 0 | P27: =BOKFØRT!C27 -> 0 | Q27: 0
A28: 109070 | B28: REISEUTGIFTER | G28: 0 | N28: 0 | P28: =BOKFØRT!C28 -> 0 | Q28: 0
A29: 109072 | B29: HOTELLOPPHOLD | G29: 0 | N29: 0 | P29: =BOKFØRT!C29 -> 0 | Q29: 0
A30: 109073 | B30: DAGPENGER/DIETTER | G30: 0 | N30: 0 | P30: =BOKFØRT!C30 -> 0 | Q30: 0
A31: 109078 | B31: MØTEKOSTNADER | G31: 0 | N31: 0 | P31: =BOKFØRT!C31 -> 0 | Q31: 0
A32: 109093 | B32: TAXI/BUDBIL | G32: 0 | N32: 0 | P32: =BOKFØRT!C32 -> 0 | Q32: 0
A33: . | F33: SUM | G33: =SUM(G8:G32) -> 0 | L33: =SUM(L7:L32) -> 0 | N33: 0 | P33: =SUM(P8:P32) -> 0 | Q33: 0
A35: 11 PROSJEKTUTVIKLING | D35: Mengde: | E35: x | F35: Sats: | G35: Sum: | H35: % | I35: Sos. utg. | L35: Fradr. MVA: | N35: Sum: | P35: Bokført
A36: 111015 | B36: EKSTRA TEKSTER (SANG ETC.) | G36: =IF(X=0,(IF(Me=0,Sa,Me*Sa)),(IF(Me=0,Sa*X,Me*X*Sa))) -> 0 | H36: =IF(Sum,Sos,0) -> 0 | I36: =IF(Prosent<>0,(Sum*Prosent)/100,0) -> 0 | L36: =IF(FMVAE<>"",(Sum*mva)-Sum,"") ->  | N36: 0 | P36: =BOKFØRT!C36 -> 0 | Q36: =G36+N36+P36 -> 0
A37: 111016 | B37: DREIEBOK | G37: 0 | H37: 0 | I37: 0 | N37: 0 | P37: =BOKFØRT!C37 -> 0 | Q37: =G37+N37+P37 -> 0
A38: 111017 | B38: STORYBOARD | G38: 0 | H38: 0 | I38: 0 | N38: 0 | P38: =BOKFØRT!C38 -> 0 | Q38: =G38+N38+P38 -> 0
A39: 111110 | B39: PRODUSENT | G39: 0 | H39: 0 | I39: 0 | N39: 0 | P39: =BOKFØRT!C39 -> 0 | Q39: =G39+N39+P39 -> 0
A40: 111116 | B40: PROSJEKTLEDER/LINE PRODUCER | G40: 0 | H40: 0 | I40: 0 | N40: 0 | P40: =BOKFØRT!C40 -> 0 | Q40: =G40+N40+P40 -> 0
A41: 111120 | B41: PRODUKSJONSLEDER | G41: 0 | H41: 0 | I41: 0 | N41: 0 | P41: =BOKFØRT!C41 -> 0 | Q41: 0
A42: 111124 | B42: PRODUKSJONSKOORDINATOR | G42: 0 | H42: 0 | I42: 0 | N42: 0 | P42: =BOKFØRT!C42 -> 0 | Q42: 0
A43: 111125 | B43: - OVERTID PROD. KOORDINATOR | F43: =IF(D43=0,0,+G42) -> 0 | G43: 0 | H43: 0 | I43: 0 | N43: 0 | P43: =BOKFØRT!C43 -> 0 | Q43: 0
A44: 111126 | B44: PRODUKSJONSSEKRETÆR | G44: 0 | H44: 0 | I44: 0 | N44: 0 | P44: =BOKFØRT!C44 -> 0 | Q44: 0
A45: 111127 | B45: - OVERTID PROD. SEKRETÆR | F45: =IF(D45=0,0,+G44) -> 0 | G45: 0 | H45: 0 | I45: 0 | N45: 0 | P45: =BOKFØRT!C45 -> 0 | Q45: 0
A46: 111130 | B46: PRODUKSJONSASSISTENTER | G46: 0 | H46: 0 | I46: 0 | N46: 0 | P46: =BOKFØRT!C46 -> 0 | Q46: 0
A47: 111131 | B47: - OVERTID PROD. ASSISTENTER | F47: =IF(D47=0,0,+G46) -> 0 | G47: 0 | H47: 0 | I47: 0 | N47: 0 | P47: =BOKFØRT!C47 -> 0 | Q47: 0
A48: 111140 | B48: LOCATION SCOUT | G48: 0 | H48: 0 | I48: 0 | N48: 0 | P48: =BOKFØRT!C48 -> 0 | Q48: 0
A49: 111141 | B49: - OVERTID LOCATION SCOUT | F49: =IF(D49=0,0,+G48) -> 0 | G49: 0 | H49: 0 | I49: 0 | N49: 0 | P49: =BOKFØRT!C49 -> 0 | Q49: 0
A50: 111210 | B50: REGISSØR | G50: 0 | H50: 0 | I50: 0 | N50: 0 | P50: =BOKFØRT!C50 -> 0 | Q50: 0
A51: 111214 | B51: REGIASSISTENT | G51: 0 | H51: 0 | I51: 0 | N51: 0 | P51: =BOKFØRT!C51 -> 0 | Q51: 0
A52: 111215 | B52: - OVERTID REGIASSISTENT | F52: =IF(D52=0,0,+G51) -> 0 | G52: 0 | H52: 0 | I52: 0 | N52: 0 | P52: =BOKFØRT!C52 -> 0 | Q52: 0
A53: 111310 | B53: PRODUCTION DESIGNER | G53: 0 | H53: 0 | I53: 0 | N53: 0 | P53: =BOKFØRT!C53 -> 0 | Q53: 0
A54: 111311 | B54: - OVERTID PRODUCTION DESIGNER | F54: =IF(D54=0,0,+G53) -> 0 | G54: 0 | H54: 0 | I54: 0 | N54: 0 | P54: =BOKFØRT!C54 -> 0 | Q54: 0
A55: 111610 | B55: KOSTYMEDESIGNER | G55: 0 | H55: 0 | I55: 0 | N55: 0 | P55: =BOKFØRT!C55 -> 0 | Q55: 0
A56: 111611 | B56: - OVERTID KOSTYMEDESIGNER | F56: =IF(D56=0,0,+G55) -> 0 | G56: 0 | H56: 0 | I56: 0 | N56: 0 | P56: =BOKFØRT!C56 -> 0 | Q56: 0
A57: 111810 | B57: SJEFSFOTOGRAF | G57: 0 | H57: 0 | I57: 0 | N57: 0 | P57: =BOKFØRT!C57 -> 0 | Q57: 0
A58: 111811 | B58: - OVERTID SJEFSFOTOGRAF | F58: =IF(D58=0,0,+G57) -> 0 | G58: 0 | H58: 0 | I58: 0 | N58: 0 | P58: =BOKFØRT!C58 -> 0 | Q58: 0
A59: 113210 | B59: LYDDESIGNER | G59: 0 | H59: 0 | I59: 0 | N59: 0 | P59: =BOKFØRT!C59 -> 0 | Q59: 0
A60: 113211 | B60: - OVERTID LYDDESIGNER | F60: =IF(D60=0,0,+G59) -> 0 | G60: 0 | H60: 0 | I60: 0 | N60: 0 | P60: =BOKFØRT!C60 -> 0 | Q60: 0
A61: 114010 | B61: KONSULENTER | G61: 0 | H61: 0 | I61: 0 | N61: 0 | P61: =BOKFØRT!C61 -> 0 | Q61: 0
A62: 114014 | B62: TOLK | G62: 0 | H62: 0 | I62: 0 | N62: 0 | P62: =BOKFØRT!C62 -> 0 | Q62: 0
A63: 114015 | B63: - OVERTID TOLK | F63: =IF(D63=0,0,+G62) -> 0 | G63: 0 | H63: 0 | I63: 0 | N63: 0 | P63: =BOKFØRT!C63 -> 0 | Q63: 0
A64: 114090 | B64: ANNET PERSONALE | G64: 0 | H64: 0 | I64: 0 | N64: 0 | P64: =BOKFØRT!C64 -> 0 | Q64: 0
A65: 114091 | B65: - OVERTID ANNET PERSONALE | F65: =IF(D65=0,0,+G64) -> 0 | G65: 0 | H65: 0 | I65: 0 | N65: 0 | P65: =BOKFØRT!C65 -> 0 | Q65: 0
A66: 114092 | B66: TARIFFJUSTERINGER | G66: 0 | H66: 0 | I66: 0 | N66: 0 | P66: =BOKFØRT!C66 -> 0 | Q66: 0
A67: 114095 | B67: SOSIALE UTGIFTER | G67: =SUM(I36:I66) -> 0 | I67: <-------' | N67: 0 | P67: =BOKFØRT!C67 -> 0 | Q67: 0
A68: 116110 | B68: BREAK DOWN/PRODUKSJONSPLAN | G68: =IF(X=0,(IF(Me=0,Sa,Me*Sa)),(IF(Me=0,Sa*X,Me*X*Sa))) -> 0 | N68: 0 | P68: =BOKFØRT!C68 -> 0 | Q68: 0
A69: 116111 | B69: KALKYLE | G69: 0 | N69: 0 | P69: =BOKFØRT!C69 -> 0 | Q69: 0
A70: 118610 | B70: ADMINISTRASJONSGODTGJØRELSE | G70: 0 | N70: 0 | P70: =BOKFØRT!C70 -> 0 | Q70: =G70+N70+P70 -> 0
A71: 118620 | B71: REGNSKAP | G71: 0 | N71: 0 | P71: =BOKFØRT!C71 -> 0 | Q71: 0
A72: 118621 | B72: REVISJON | G72: 0 | N72: 0 | P72: =BOKFØRT!C72 -> 0 | Q72: 0
A73: 118622 | B73: JURIDISK ASSISTANSE | G73: 0 | N73: 0 | P73: =BOKFØRT!C73 -> 0 | Q73: 0
A74: 119010 | B74: LEIE KONTORER | G74: 0 | N74: 0 | P74: =BOKFØRT!C74 -> 0 | Q74: 0
A75: 119013 | B75: PRØVEKINO/VIDEOPROJEKSJON | G75: 0 | N75: 0 | P75: =BOKFØRT!C75 -> 0 | Q75: 0
A76: 119022 | B76: KONTORREKVISITA | G76: 0 | N76: 0 | P76: =BOKFØRT!C76 -> 0 | Q76: 0
A77: 119025 | B77: PROGRAMVARE | G77: 0 | N77: 0 | P77: =BOKFØRT!C77 -> 0 | Q77: 0
A78: 119029 | B78: MANGFOLDIGGJØRING | G78: 0 | N78: 0 | P78: =BOKFØRT!C78 -> 0 | Q78: 0
A79: 119030 | B79: TELEFON/PORTO | G79: 0 | N79: 0 | P79: =BOKFØRT!C79 -> 0 | Q79: 0
A80: 119040 | B80: ARBEIDSTILLS | G80: 0 | N80: 0 | P80: =BOKFØRT!C80 -> 0 | Q80: 0
A81: 119042 | B81: VIDEOUTSTYR | G81: 0 | N81: 0 | P81: =BOKFØRT!C81 -> 0 | Q81: 0
A82: 119044 | B82: VIDEOTAPE | G82: 0 | N82: 0 | P82: =BOKFØRT!C82 -> 0 | Q82: 0
A83: 119060 | B83: BAKGRUNNSMATERIELL | G83: 0 | N83: 0 | P83: =BOKFØRT!C83 -> 0 | Q83: 0
A84: 119061 | B84: LEIE FILMER/VIDEO | G84: 0 | N84: 0 | P84: =BOKFØRT!C84 -> 0 | Q84: 0
A85: 119069 | B85: ANDRE KOSTNADER | C85: Spesifiser her! | G85: 0 | N85: 0 | P85: =BOKFØRT!C85 -> 0 | Q85: 0
A86: 119070 | B86: REISEUTGIFTER | G86: 0 | N86: 0 | P86: =BOKFØRT!C86 -> 0 | Q86: 0
A87: 119072 | B87: HOTELLOPPHOLD | G87: 0 | N87: 0 | P87: =BOKFØRT!C87 -> 0 | Q87: 0
A88: 119073 | B88: DAGPENGER/DIETTER | G88: 0 | N88: 0 | P88: =BOKFØRT!C88 -> 0 | Q88: 0
A89: 119077 | B89: MAT V/OVERTID | G89: 0 | N89: 0 | P89: =BOKFØRT!C89 -> 0 | Q89: 0
A90: 119078 | B90: MØTEKOSTNADER | G90: 0 | N90: 0 | P90: =BOKFØRT!C90 -> 0 | Q90: 0
A91: 119081 | B91: LEIDE BILER | G91: 0 | N91: 0 | P91: =BOKFØRT!C91 -> 0 | Q91: 0
A92: 119082 | B92: SKADER LEIDE BILER | G92: 0 | N92: 0 | P92: =BOKFØRT!C92 -> 0 | Q92: 0
A93: 119083 | B93: BENSIN/OLJE ETC. | G93: 0 | N93: 0 | P93: =BOKFØRT!C93 -> 0 | Q93: 0
A94: 119084 | B94: PARKERING/BOM/FERGER | G94: 0 | N94: 0 | P94: =BOKFØRT!C94 -> 0 | Q94: 0
A95: 119085 | B95: BILGODTGJØRELSE | G95: 0 | N95: 0 | P95: =BOKFØRT!C95 -> 0 | Q95: 0
A96: 119090 | B96: LEID TRANSPORT | G96: 0 | N96: 0 | P96: =BOKFØRT!C96 -> 0 | Q96: 0
A97: 119091 | B97: LEIE AV HELIKOPTER/FLY | G97: 0 | N97: 0 | P97: =BOKFØRT!C97 -> 0 | Q97: 0
A98: 119092 | B98: LEIE BÅT/SNØSCOOTER ETC. | G98: 0 | N98: 0 | P98: =BOKFØRT!C98 -> 0 | Q98: 0
A99: 119093 | B99: TAXI/BUDBIL | G99: 0 | N99: 0 | P99: =BOKFØRT!C99 -> 0 | Q99: 0
A100: . | F100: SUM | G100: =SUM(G36:G99) -> 0 | L100: =SUM(L36:L99) -> 0 | N100: 0 | P100: =SUM(P36:P99) -> 0 | Q100: 0
A102: 21 FORARBEID | D102: Mengde: | E102: x | F102: Sats: | G102: Sum: | H102: % | I102: Sos. utg. | L102: Fradr. MVA: | N102: Sum: | P102: Bokført
A103: 211116 | B103: PROSJEKTLEDER/LINE PRODUCER | G103: =IF(X=0,(IF(Me=0,Sa,Me*Sa)),(IF(Me=0,Sa*X,Me*X*Sa))) -> 0 | H103: =IF(Sum,Sos,0) -> 0 | I103: =IF(Prosent<>0,(Sum*Prosent)/100,0) -> 0 | L103: =IF(FMVAE<>"",(Sum*mva)-Sum,"") ->  | N103: 0 | P103: =BOKFØRT!C103 -> 0 | Q103: =G103+N103+P103 -> 0
A104: 211120 | B104: PRODUKSJONSLEDER | G104: 0 | H104: 0 | I104: 0 | N104: 0 | P104: =BOKFØRT!C104 -> 0 | Q104: 0
A105: 211124 | B105: PRODUKSJONSKOORDINATOR | G105: 0 | H105: 0 | I105: 0 | N105: 0 | P105: =BOKFØRT!C105 -> 0 | Q105: 0
A106: 211125 | B106: - OVERTID PROD. KOORDINATOR | F106: =IF(D106=0,0,+G105) -> 0 | G106: 0 | H106: 0 | I106: 0 | N106: 0 | P106: =BOKFØRT!C106 -> 0 | Q106: 0
A107: 211126 | B107: PRODUKSJONSSEKRETÆR | G107: 0 | H107: 0 | I107: 0 | N107: 0 | P107: =BOKFØRT!C107 -> 0 | Q107: 0
A108: 211127 | B108: - OVERTID PROD. SEKRETÆR | F108: =IF(D108=0,0,+G107) -> 0 | G108: 0 | H108: 0 | I108: 0 | N108: 0 | P108: =BOKFØRT!C108 -> 0 | Q108: 0
A109: 211130 | B109: PRODUKSJONSASSISTENTER | G109: 0 | H109: 0 | I109: 0 | N109: 0 | P109: =BOKFØRT!C109 -> 0 | Q109: 0
A110: 211131 | B110: - OVERTID PROD. ASSISTENTER | F110: =IF(D110=0,0,+G109) -> 0 | G110: 0 | H110: 0 | I110: 0 | N110: 0 | P110: =BOKFØRT!C110 -> 0 | Q110: 0
A111: 211140 | B111: LOCATION RESEARCH | G111: 0 | H111: 0 | I111: 0 | N111: 0 | P111: =BOKFØRT!C111 -> 0 | Q111: 0
A112: 211141 | B112: - OVERTID LOCATION RESEARCH | F112: =IF(D112=0,0,+G111) -> 0 | G112: 0 | H112: 0 | I112: 0 | N112: 0 | P112: =BOKFØRT!C112 -> 0 | Q112: 0
A113: 211210 | B113: REGISSØR | G113: 0 | H113: 0 | I113: 0 | N113: 0 | P113: =BOKFØRT!C113 -> 0 | Q113: 0
A114: 211214 | B114: REGIASSISTENT | G114: 0 | H114: 0 | I114: 0 | N114: 0 | P114: =BOKFØRT!C114 -> 0 | Q114: 0
A115: 211215 | B115: - OVERTID REGIASSISTENT | F115: =IF(D115=0,0,+G114) -> 0 | G115: 0 | H115: 0 | I115: 0 | N115: 0 | P115: =BOKFØRT!C115 -> 0 | Q115: 0
A116: 211240 | B116: CASTING | G116: 0 | H116: 0 | I116: 0 | N116: 0 | P116: =BOKFØRT!C116 -> 0 | Q116: 0
A117: 211241 | B117: - OVERTID CASTING | F117: =IF(D117=0,0,+G116) -> 0 | G117: 0 | H117: 0 | I117: 0 | N117: 0 | P117: =BOKFØRT!C117 -> 0 | Q117: 0
A118: 211310 | B118: PRODUCTION DESIGNER | G118: 0 | H118: 0 | I118: 0 | N118: 0 | P118: =BOKFØRT!C118 -> 0 | Q118: 0
A119: 211311 | B119: - OVERTID PRODUCTION DESIGNER | F119: =IF(D119=0,0,+G118) -> 0 | G119: 0 | H119: 0 | I119: 0 | N119: 0 | P119: =BOKFØRT!C119 -> 0 | Q119: 0
A120: 211610 | B120: KOSTYMEDESIGNER | G120: 0 | H120: 0 | I120: 0 | N120: 0 | P120: =BOKFØRT!C120 -> 0 | Q120: 0
A121: 211611 | B121: - OVERTID KOSTYMEDESIGNER | F121: =IF(D121=0,0,+G120) -> 0 | G121: 0 | H121: 0 | I121: 0 | N121: 0 | P121: =BOKFØRT!C121 -> 0 | Q121: 0
A122: 211810 | B122: SJEFSFOTOGRAF | G122: 0 | H122: 0 | I122: 0 | N122: 0 | P122: =BOKFØRT!C122 -> 0 | Q122: 0
A123: 211811 | B123: - OVERTID SJEFSFOTOGRAF | F123: =IF(D123=0,0,+G122) -> 0 | G123: 0 | H123: 0 | I123: 0 | N123: 0 | P123: =BOKFØRT!C123 -> 0 | Q123: 0
A124: 213210 | B124: LYDDESIGNER | G124: 0 | H124: 0 | I124: 0 | N124: 0 | P124: =BOKFØRT!C124 -> 0 | Q124: 0
A125: 213211 | B125: - OVERTID LYDDESIGNER | F125: =IF(D125=0,0,+G124) -> 0 | G125: 0 | H125: 0 | I125: 0 | N125: 0 | P125: =BOKFØRT!C125 -> 0 | Q125: 0
A126: 214010 | B126: KONSULENTER | G126: 0 | H126: 0 | I126: 0 | N126: 0 | P126: =BOKFØRT!C126 -> 0 | Q126: 0
A127: 214014 | B127: TOLK | G127: 0 | H127: 0 | I127: 0 | N127: 0 | P127: =BOKFØRT!C127 -> 0 | Q127: 0
A128: 214015 | B128: - OVERTID TOLK | F128: =IF(D128=0,0,+G127) -> 0 | G128: 0 | H128: 0 | I128: 0 | N128: 0 | P128: =BOKFØRT!C128 -> 0 | Q128: 0
A129: 214090 | B129: ANNET PERSONALE | G129: 0 | H129: 0 | I129: 0 | N129: 0 | P129: =BOKFØRT!C129 -> 0 | Q129: 0
A130: 214091 | B130: - OVERTID ANNET PERSONALE | F130: =IF(D130=0,0,+G129) -> 0 | G130: 0 | H130: 0 | I130: 0 | N130: 0 | P130: =BOKFØRT!C130 -> 0 | Q130: 0
A131: 214092 | B131: TARIFFJUSTERINGER | G131: 0 | H131: 0 | I131: 0 | N131: 0 | P131: =BOKFØRT!C131 -> 0 | Q131: 0
A132: 214095 | B132: SOSIALE UTGIFTER | G132: =SUM(I103:I131) -> 0 | I132: <-------' | N132: 0 | P132: =BOKFØRT!C132 -> 0 | Q132: 0
A133: 218622 | B133: JURIDISK ASSISTANSE | G133: =IF(X=0,(IF(Me=0,Sa,Me*Sa)),(IF(Me=0,Sa*X,Me*X*Sa))) -> 0 | N133: 0 | P133: =BOKFØRT!C133 -> 0 | Q133: 0
A134: 219010 | B134: LEIE KONTORER | G134: 0 | N134: 0 | P134: =BOKFØRT!C134 -> 0 | Q134: 0
A135: 219013 | B135: PRØVEKINO/VIDEOPROJEKSJON | G135: 0 | N135: 0 | P135: =BOKFØRT!C135 -> 0 | Q135: 0
A136: 219014 | B136: LOKALER PRØVEFILM/PRØVER | G136: 0 | N136: 0 | P136: =BOKFØRT!C136 -> 0 | Q136: 0
A137: 219022 | B137: KONTORREKVISITA | G137: 0 | N137: 0 | P137: =BOKFØRT!C137 -> 0 | Q137: 0
A138: 219023 | B138: DATAUTSTYR | G138: 0 | N138: 0 | P138: =BOKFØRT!C138 -> 0 | Q138: 0
A139: 219025 | B139: PROGRAMVARE | G139: 0 | N139: 0 | P139: =BOKFØRT!C139 -> 0 | Q139: 0
A140: 219029 | B140: MANGFOLDIGGJØRING | G140: 0 | N140: 0 | P140: =BOKFØRT!C140 -> 0 | Q140: 0
A141: 219030 | B141: TELEFON/PORTO | G141: 0 | N141: 0 | P141: =BOKFØRT!C141 -> 0 | Q141: 0
A142: 219040 | B142: ARBEIDSTILLS | G142: 0 | N142: 0 | P142: =BOKFØRT!C142 -> 0 | Q142: 0
A143: 219042 | B143: VIDEOUTSTYR | G143: 0 | N143: 0 | P143: =BOKFØRT!C143 -> 0 | Q143: 0
A144: 219044 | B144: VIDEOTAPE | G144: 0 | N144: 0 | P144: =BOKFØRT!C144 -> 0 | Q144: 0
A145: 219060 | B145: BAKGRUNNSMATERIELL | G145: 0 | N145: 0 | P145: =BOKFØRT!C145 -> 0 | Q145: 0
A146: 219061 | B146: LEIE FILMER/VIDEO | D146: 0 | G146: 0 | N146: 0 | P146: =BOKFØRT!C146 -> 0 | Q146: 0
A147: 219063 | B147: ANNONSERING | G147: 0 | N147: 0 | P147: =BOKFØRT!C147 -> 0 | Q147: 0
A148: 219069 | B148: ANDRE KOSTNADER | C148: Spesifiser her! | G148: 0 | N148: 0 | P148: =BOKFØRT!C148 -> 0 | Q148: 0
A149: 219077 | B149: MAT V/OVERTID | G149: 0 | N149: 0 | P149: =BOKFØRT!C149 -> 0 | Q149: 0
A150: 219078 | B150: MØTEKOSTNADER | G150: 0 | N150: 0 | P150: =BOKFØRT!C150 -> 0 | Q150: 0
A151: . | F151: SUM | G151: =SUM(G103:G150) -> 0 | L151: =SUM(L103:L150) -> 0 | N151: 0 | P151: =SUM(P103:P150) -> 0 | Q151: 0
A153: 31 PRODUKSJON | D153: Mengde: | E153: x | F153: Sats: | G153: Sum: | H153: % | I153: Sos. utg. | L153: Fradr. MVA: | N153: Sum: | P153: Bokført
A154: 311116 | B154: PROSJEKTLEDER/LINE PRODUCER | G154: =IF(X=0,(IF(Me=0,Sa,Me*Sa)),(IF(Me=0,Sa*X,Me*X*Sa))) -> 0 | H154: =IF(Sum,Sos,0) -> 0 | I154: =IF(Prosent<>0,(Sum*Prosent)/100,0) -> 0 | L154: =IF(FMVAE<>"",(Sum*mva)-Sum,"") ->  | N154: 0 | P154: =BOKFØRT!C154 -> 0 | Q154: =G154+N154+P154 -> 0
A155: 311120 | B155: PRODUKSJONSLEDER | G155: 0 | H155: 0 | I155: 0 | N155: 0 | P155: =BOKFØRT!C155 -> 0 | Q155: 0
A156: 311122 | B156: B-PRODUKSJONSLEDER | G156: 0 | H156: 0 | I156: 0 | N156: 0 | P156: =BOKFØRT!C156 -> 0 | Q156: 0
A157: 311123 | B157: - OVERTID B-PROD. LEDER | F157: =IF(D157=0,0,+G156) -> 0 | G157: 0 | H157: 0 | I157: 0 | N157: 0 | P157: =BOKFØRT!C157 -> 0 | Q157: 0
A158: 311124 | B158: PRODUKSJONSKOORDINATOR | G158: 0 | H158: 0 | I158: 0 | N158: 0 | P158: =BOKFØRT!C158 -> 0 | Q158: 0
A159: 311125 | B159: - OVERTID PROD. KOORDINATOR | F159: =IF(D159=0,0,+G158) -> 0 | G159: 0 | H159: 0 | I159: 0 | N159: 0 | P159: =BOKFØRT!C159 -> 0 | Q159: 0
A160: 311126 | B160: PRODUKSJONSSEKRETÆR | G160: 0 | H160: 0 | I160: 0 | N160: 0 | P160: =BOKFØRT!C160 -> 0 | Q160: 0
A161: 311127 | B161: - OVERTID PROD. SEKRETÆR | F161: =IF(D161=0,0,+G160) -> 0 | G161: 0 | H161: 0 | I161: 0 | N161: 0 | P161: =BOKFØRT!C161 -> 0 | Q161: 0
A162: 311130 | B162: PRODUKSJONSASSISTENTER | G162: 0 | H162: 0 | I162: 0 | N162: 0 | P162: =BOKFØRT!C162 -> 0 | Q162: 0
A163: 311131 | B163: - OVERTID PROD. ASSISTENTER | F163: =IF(D163=0,0,+G162) -> 0 | G163: 0 | H163: 0 | I163: 0 | N163: 0 | P163: =BOKFØRT!C163 -> 0 | Q163: 0
A164: 311142 | B164: LOCATION MANAGER | G164: 0 | H164: 0 | I164: 0 | N164: 0 | P164: =BOKFØRT!C164 -> 0 | Q164: 0
A165: 311143 | B165: - OVERTID LOCATION MANAGER | F165: =IF(D165=0,0,+G164) -> 0 | G165: 0 | H165: 0 | I165: 0 | N165: 0 | P165: =BOKFØRT!C165 -> 0 | Q165: 0
A166: 311150 | B166: INNSPILLINGSLEDER | G166: 0 | H166: 0 | I166: 0 | N166: 0 | P166: =BOKFØRT!C166 -> 0 | Q166: 0
A167: 311151 | B167: - OVERTID INNSPILLINGSLEDER | F167: =IF(D167=0,0,+G166) -> 0 | G167: 0 | H167: 0 | I167: 0 | N167: 0 | P167: =BOKFØRT!C167 -> 0 | Q167: 0
A168: 311152 | B168: INNSPILLINGSASSISTENTER | G168: 0 | H168: 0 | I168: 0 | N168: 0 | P168: =BOKFØRT!C168 -> 0 | Q168: 0
A169: 311153 | B169: - OVERTID INNSP. ASSISTENTER | F169: =IF(D169=0,0,+G168) -> 0 | G169: 0 | H169: 0 | I169: 0 | N169: 0 | P169: =BOKFØRT!C169 -> 0 | Q169: 0
A170: 311170 | B170: PRODUKSJONSBOKHOLDER | G170: 0 | H170: 0 | I170: 0 | N170: 0 | P170: =BOKFØRT!C170 -> 0 | Q170: 0
A171: 311171 | B171: - OVERTID PROD. BOKHOLDER | F171: =IF(D171=0,0,+G170) -> 0 | G171: 0 | H171: 0 | I171: 0 | N171: 0 | P171: =BOKFØRT!C171 -> 0 | Q171: 0
A172: 311180 | B172: CATERINGPERSONALE | G172: 0 | H172: 0 | I172: 0 | N172: 0 | P172: =BOKFØRT!C172 -> 0 | Q172: 0
A173: 311181 | B173: - OVERTID CATERINGPERSONALE | F173: =IF(D173=0,0,+G172) -> 0 | G173: 0 | H173: 0 | I173: 0 | N173: 0 | P173: =BOKFØRT!C173 -> 0 | Q173: 0
A174: 311190 | B174: ANNET PRODUKSJONSPERSONALE | G174: 0 | H174: 0 | I174: 0 | N174: 0 | P174: =BOKFØRT!C174 -> 0 | Q174: 0
A175: 311191 | B175: - OVERTID ANNET PROD. PERS. | F175: =IF(D175=0,0,+G174) -> 0 | G175: 0 | H175: 0 | I175: 0 | N175: 0 | P175: =BOKFØRT!C175 -> 0 | Q175: 0
A176: 313720 | B176: PRESSEMEDARBEIDER | G176: 0 | H176: 0 | I176: 0 | N176: 0 | P176: =BOKFØRT!C176 -> 0 | Q176: 0
A177: 313721 | B177: - OVERTID PRESSEMEDARBEIDER | F177: =IF(D177=0,0,+G176) -> 0 | G177: 0 | H177: 0 | I177: 0 | N177: 0 | P177: =BOKFØRT!C177 -> 0 | Q177: 0
A178: 314010 | B178: KONSULENTER | G178: 0 | H178: 0 | I178: 0 | N178: 0 | P178: =BOKFØRT!C178 -> 0 | Q178: 0
A179: 314012 | B179: LÆRER/BARNEVAKT | G179: 0 | H179: 0 | I179: 0 | N179: 0 | P179: =BOKFØRT!C179 -> 0 | Q179: 0
A180: 314013 | B180: - OVERTID LÆRER/BARNEVAKT | F180: =IF(D180=0,0,+G179) -> 0 | G180: 0 | H180: 0 | I180: 0 | N180: 0 | P180: =BOKFØRT!C180 -> 0 | Q180: 0
A181: 314014 | B181: TOLK | G181: 0 | H181: 0 | I181: 0 | N181: 0 | P181: =BOKFØRT!C181 -> 0 | Q181: 0
A182: 314015 | B182: - OVERTID TOLK | F182: =IF(D182=0,0,+G181) -> 0 | G182: 0 | H182: 0 | I182: 0 | N182: 0 | P182: =BOKFØRT!C182 -> 0 | Q182: 0
A183: 314020 | B183: POLITIASSISTANSE | G183: 0 | H183: 0 | I183: 0 | N183: 0 | P183: =BOKFØRT!C183 -> 0 | Q183: 0
A184: 314022 | B184: VAKTHOLD | G184: 0 | H184: 0 | I184: 0 | N184: 0 | P184: =BOKFØRT!C184 -> 0 | Q184: 0
A185: 314023 | B185: - OVERTID VAKTHOLD | F185: =IF(D185=0,0,+G184) -> 0 | G185: 0 | H185: 0 | I185: 0 | N185: 0 | P185: =BOKFØRT!C185 -> 0 | Q185: 0
A186: 314030 | B186: LOKAL ASSISTANSE | G186: 0 | H186: 0 | I186: 0 | N186: 0 | P186: =BOKFØRT!C186 -> 0 | Q186: 0
A187: 314031 | B187: - OVERTID LOKAL ASSISTANSE | F187: =IF(D187=0,0,+G186) -> 0 | G187: 0 | H187: 0 | I187: 0 | N187: 0 | P187: =BOKFØRT!C187 -> 0 | Q187: 0
A188: 314040 | B188: HOSPITANTER | G188: 0 | H188: 0 | I188: 0 | N188: 0 | P188: =BOKFØRT!C188 -> 0 | Q188: 0
A189: 314041 | B189: - OVERTID HOSPITANTER | F189: =IF(D189=0,0,+G188) -> 0 | G189: 0 | H189: 0 | I189: 0 | N189: 0 | P189: =BOKFØRT!C189 -> 0 | Q189: 0
A190: 314050 | B190: TILLITSVALGT | G190: 0 | H190: 0 | I190: 0 | N190: 0 | P190: =BOKFØRT!C190 -> 0 | Q190: 0
A191: 314052 | B191: VERNEOMBUD | G191: 0 | H191: 0 | I191: 0 | N191: 0 | P191: =BOKFØRT!C191 -> 0 | Q191: 0
A192: 314090 | B192: ANNET PERSONALE | G192: 0 | H192: 0 | I192: 0 | N192: 0 | P192: =BOKFØRT!C192 -> 0 | Q192: 0
A193: 314091 | B193: - OVERTID ANNET PERSONALE | F193: =IF(D193=0,0,+G192) -> 0 | G193: 0 | H193: 0 | I193: 0 | N193: 0 | P193: =BOKFØRT!C193 -> 0 | Q193: 0
A194: 314092 | B194: TARIFFJUSTERINGER | G194: 0 | H194: 0 | I194: 0 | N194: 0 | P194: =BOKFØRT!C194 -> 0 | Q194: 0
A195: 314095 | B195: SOSIALE UTGIFTER | G195: =SUM(I154:I194) -> 0 | I195: <-------' | N195: 0 | P195: =BOKFØRT!C195 -> 0 | Q195: 0
A196: 316122 | B196: LEIE GARDEROBER | G196: =IF(X=0,(IF(Me=0,Sa,Me*Sa)),(IF(Me=0,Sa*X,Me*X*Sa))) -> 0 | N196: 0 | P196: =BOKFØRT!C196 -> 0 | Q196: 0
A197: 316130 | B197: LOCATIONLEIE | G197: 0 | N197: 0 | P197: =BOKFØRT!C197 -> 0 | Q197: 0
A198: 316131 | B198: OPPHOLDSROM LOCATION | G198: 0 | N198: 0 | P198: =BOKFØRT!C198 -> 0 | Q198: 0
A199: 316132 | B199: TOILETTVOGN | G199: 0 | N199: 0 | P199: =BOKFØRT!C199 -> 0 | Q199: 0
A200: 316133 | B200: LOC. BUSS/CAMPINGVOGN/HUSBIL | G200: 0 | N200: 0 | P200: =BOKFØRT!C200 -> 0 | Q200: 0
A201: 316134 | B201: VISNINGSUTSTYR/LOKAL KINO | G201: 0 | N201: 0 | P201: =BOKFØRT!C201 -> 0 | Q201: 0
A202: 316135 | B202: LOCATIONUTSTYR | G202: 0 | N202: 0 | P202: =BOKFØRT!C202 -> 0 | Q202: =G202+N202+P202 -> 0
A203: 316138 | B203: SKILTING/PARKERINGSRESERVERING | G203: 0 | N203: 0 | P203: =BOKFØRT!C203 -> 0 | Q203: 0
A204: 316140 | B204: MEDISINSK BEHANDLING | G204: 0 | N204: 0 | P204: =BOKFØRT!C204 -> 0 | Q204: 0
A205: 316141 | B205: SPESIALBEKLEDNING STAB | G205: 0 | N205: 0 | P205: =BOKFØRT!C205 -> 0 | Q205: 0
... 715 more rows

Sheet ESTIMATSPES
A1: 44 REISER TRANSPORT SPESIFIKASJONER | C1: ESTIMAT
A3: 449070 | B3: Reiseutgifter | C3: Mengde: | D3: x | E3: Sats: | F3: Sum: | I3: Fradr. MVA:
F4: =IF(D4=0,(IF(C4=0,E4,C4*E4)),(IF(C4=0,E4*D4,C4*D4*E4))) -> 0 | I4: =IF(H4<>"",(F4*mva)-F4,"") -> 
F5: 0 | I5: =IF(H5<>"",(F5*mva)-F5,"") -> 
F6: 0
F7: 0
F8: 0
F9: 0
F10: 0
F11: 0
F12: 0
F13: 0
F14: 0
F15: 0
F16: 0
F17: 0
F18: 0
F19: 0
F20: 0
F21: 0
F22: 0
F23: 0
A24: , | E24: SUM | F24: =SUM(F4:F23) -> 0 | I24: =SUM(I4:I23) -> 0
A27: 449072 | B27: Hotellopphold | C27: Mengde: | D27: x | E27: Sats: | F27: Sum:
F28: =IF(D28=0,(IF(C28=0,E28,C28*E28)),(IF(C28=0,E28*D28,C28*D28*E28))) -> 0 | I28: =IF(H28<>"",(F28*mva)-F28,"") -> 
F29: 0 | I29: =IF(H29<>"",(F29*mva)-F29,"") -> 
F30: 0
F31: 0
F32: 0
F33: 0
F34: 0
F35: 0
F36: 0
F37: 0
F38: 0
F39: 0
F40: 0
F41: 0
F42: 0
F43: 0
F44: 0
F45: 0
F46: 0
F47: 0
E48: SUM | F48: =SUM(F28:F47) -> 0 | I48: =SUM(I28:I47) -> 0
A51: 449073 | B51: Dagpenger/dietter | C51: Mengde: | D51: x | E51: Sats: | F51: Sum:
F52: =IF(D52=0,(IF(C52=0,E52,C52*E52)),(IF(C52=0,E52*D52,C52*D52*E52))) -> 0 | I52: =IF(H52<>"",(F52*mva)-F52,"") -> 
F53: 0 | I53: =IF(H53<>"",(F53*mva)-F53,"") -> 
F54: 0
F55: 0
F56: 0
F57: 0
F58: 0
F59: 0
F60: 0
F61: 0
F62: 0
F63: 0
F64: 0
F65: 0
F66: 0
F67: 0
F68: 0
F69: 0
F70: 0
F71: 0
E72: SUM | F72: =SUM(F52:F71) -> 0 | I72: =SUM(I52:I71) -> 0
A75: 449082 | B75: Leide biler | C75: Mengde: | D75: x | E75: Sats: | F75: Sum:
F76: =IF(D76=0,(IF(C76=0,E76,C76*E76)),(IF(C76=0,E76*D76,C76*D76*E76))) -> 0 | I76: =IF(H76<>"",(F76*mva)-F76,"") -> 
F77: 0 | I77: =IF(H77<>"",(F77*mva)-F77,"") -> 
F78: 0
F79: 0
F80: 0
F81: 0
F82: 0
F83: 0
F84: 0
F85: 0
F86: 0
F87: 0
F88: 0
F89: 0
F90: 0
F91: 0
F92: 0
F93: 0
F94: 0
F95: 0
E96: SUM | F96: =SUM(F76:F95) -> 0 | I96: =SUM(I76:I95) -> 0
A99: 449093 | B99: Taxi/budbil | C99: Mengde: | D99: x | E99: Sats: | F99: Sum:
F100: =IF(D100=0,(IF(C100=0,E100,C100*E100)),(IF(C100=0,E100*D100,C100*D100*E100))) -> 0 | I100: =IF(H100<>"",(F100*mvalav)-F100,"") -> 
F101: 0 | I101: =IF(H101<>"",(F101*mvalav)-F101,"") -> 
F102: 0
F103: 0
F104: 0
F105: 0
F106: 0
F107: 0
F108: 0
F109: 0
F110: 0
F111: 0
F112: 0
F113: 0
F114: 0
F115: 0
F116: 0
F117: 0
F118: 0
F119: 0
E120: SUM | F120: =SUM(F100:F119) -> 0 | I120: =SUM(I100:I119) -> 0
A123: 449098 | B123: Frakt/spedisjon | C123: Mengde: | D123: x | E123: Sats: | F123: Sum:
F124: =IF(D124=0,(IF(C124=0,E124,C124*E124)),(IF(C124=0,E124*D124,C124*D124*E124))) -> 0 | I124: =IF(H124<>"",(F124*mva)-F124,"") -> 
F125: 0 | I125: =IF(H125<>"",(F125*mva)-F125,"") -> 
F126: 0
F127: 0
F128: 0
F129: 0
F130: 0
F131: 0
F132: 0
F133: 0
F134: 0
F135: 0
F136: 0
F137: 0
F138: 0
F139: 0
F140: 0
F141: 0
F142: 0
F143: 0
E144: SUM | F144: =SUM(F124:F143) -> 0 | I144: =SUM(I124:I143) -> 0

Sheet RAPPORT
B2: SLUTTKOSTNADSESTIMAT
B4: Prosjekt : | D4: =FORUTSETNINGER!C4 -> 0
B6: Dato : | D6: =BOKFØRT!C5 -> 2011-01-01 | G6: Bokført pr. | I6: Disponert, | K6: Estimerte | M6: Sluttkostnad | Q6: Avvik
E7: Kalkyle | G7: =BOKFØRT!C5 -> 2011-01-01 | I7: ikke bokført | K7: restkostnader | M7: estimat | O7: Herav MVA: | Q7: Kalkyle - sluttk.
B8: 10 | C8: Manuskriptutvikling | E8: =ROUND(Sum_10,0) -> 0 | G8: =Bokf10 -> 0 | H8: + | J8: + | K8: =M8-G8-I8 -> 0 | L8: = | M8: =ROUND(SumSK10,0) -> 0 | O8: =Mva_10 -> 0 | Q8: =M8-E8 -> 0
B9: 11 | C9: Prosjektutvikling | E9: =ROUND(Sum_11,0) -> 0 | G9: =Bokf11 -> 0 | H9: + | J9: + | K9: =M9-G9-I9 -> 0 | L9: = | M9: =ROUND(SumSK11,0) -> 0 | O9: =Mva_11 -> 0 | Q9: 0
C10: TOTALE UTVIKLINGSKOSTNADER | E10: =SUM(E8:E9) -> 0 | G10: =SUM(G8:G9) -> 0 | H10: + | I10: =SUM(I8:I9) -> 0 | J10: + | K10: =SUM(K8:K9) -> 0 | L10: = | M10: =SUM(M8:M9) -> 0 | Q10: 0
B11: 21 | C11: Forarbeid | E11: =ROUND(Sum_21,0) -> 0 | G11: =Bokf21 -> 0 | H11: + | J11: + | K11: =M11-G11-I11 -> 0 | L11: = | M11: =ROUND(SumSK21,0) -> 0 | O11: =Mva_21 -> 0 | Q11: 0
B12: 31 | C12: Produksjon | E12: =ROUND(Sum_31,0) -> 0 | G12: =Bokf31 -> 0 | H12: + | J12: + | K12: 0 | L12: = | M12: =ROUND(SumSK31,0) -> 0 | O12: =Mva_31 -> 0 | Q12: 0
B13: 32 | C13: Regi | E13: =ROUND(Sum_32,0) -> 0 | G13: =Bokf32 -> 0 | H13: + | J13: + | K13: 0 | L13: = | M13: =ROUND(SumSK32,0) -> 0 | O13: =Mva_32 -> 0 | Q13: 0
B14: 33 | C14: Dekor | E14: =ROUND(Sum_33,0) -> 0 | G14: =Bokf33 -> 0 | H14: + | J14: + | K14: 0 | L14: = | M14: =ROUND(SumSK33,0) -> 0 | O14: =Mva_33 -> 0 | Q14: 0
B15: 34 | C15: Rekvisitt | E15: =ROUND(Sum_34,0) -> 0 | G15: =Bokf34 -> 0 | H15: + | J15: + | K15: 0 | L15: = | M15: =ROUND(SumSK34,0) -> 0 | O15: =Mva_34 -> 0 | Q15: 0
B16: 35 | C16: Special effects | E16: =ROUND(Sum_35,0) -> 0 | G16: =Bokf35 -> 0 | H16: + | J16: + | K16: 0 | L16: = | M16: =ROUND(SumSK35,0) -> 0 | O16: =Mva_35 -> 0 | Q16: 0
B17: 36 | C17: Kostyme | E17: =ROUND(Sum_36,0) -> 0 | G17: =Bokf36 -> 0 | H17: + | J17: + | K17: 0 | L17: = | M17: =ROUND(SumSK36,0) -> 0 | O17: =Mva_36 -> 0 | Q17: 0
B18: 37 | C18: Sminke | E18: =ROUND(Sum_37,0) -> 0 | G18: =Bokf37 -> 0 | H18: + | J18: + | K18: 0 | L18: = | M18: =ROUND(SumSK37,0) -> 0 | O18: =Mva_37 -> 0 | Q18: 0
B19: 38 | C19: Foto | E19: =ROUND(Sum_38,0) -> 0 | G19: =Bokf38 -> 0 | H19: + | J19: + | K19: 0 | L19: = | M19: =ROUND(SumSK38,0) -> 0 | O19: =Mva_38 -> 0 | Q19: 0
B20: 39 | C20: Lys | E20: =ROUND(Sum_39,0) -> 0 | G20: =Bokf39 -> 0 | H20: + | J20: + | K20: 0 | L20: = | M20: =ROUND(SumSK39,0) -> 0 | O20: =Mva_39 -> 0 | Q20: 0
B21: 40 | C21: Grip | E21: =ROUND(Sum_40,0) -> 0 | G21: =Bokf40 -> 0 | H21: + | J21: + | K21: 0 | L21: = | M21: =ROUND(SumSK40,0) -> 0 | O21: =Mva_40 -> 0 | Q21: 0
B22: 41 | C22: Opptakslyd | E22: =ROUND(Sum_41,0) -> 0 | G22: =Bokf41 -> 0 | H22: + | J22: + | K22: 0 | L22: = | M22: =ROUND(SumSK41,0) -> 0 | O22: =Mva_41 -> 0 | Q22: 0
B23: 42 | C23: Skuespillere | E23: =ROUND(Sum_42,0) -> 0 | G23: =Bokf42 -> 0 | H23: + | J23: + | K23: 0 | L23: = | M23: =ROUND(SumSK42,0) -> 0 | O23: =Mva_42 -> 0 | Q23: 0
B24: 44 | C24: Reiser/Transport | E24: =ROUND(Sum_44,0) -> 0 | G24: =Bokf44 -> 0 | H24: + | J24: + | K24: 0 | L24: = | M24: =ROUND(SumSK44,0) -> 0 | O24: =_Mva43 ->  | Q24: 0
C25: TOTALE OPPTAKSKOSTNADER | E25: =SUM(E11:E24) -> 0 | G25: =SUM(G11:G24) -> 0 | H25: + | I25: =SUM(I11:I24) -> 0 | J25: + | K25: =SUM(K11:K24) -> 0 | L25: = | M25: =SUM(M11:M24) -> 0 | Q25: 0
B26: 51 | C26: Produksjon etterarbeid | E26: =ROUND(Sum_51,0) -> 0 | G26: =Bokf51 -> 0 | H26: + | J26: + | K26: =M26-G26-I26 -> 0 | L26: = | M26: =ROUND(SumSK51,0) -> 0 | O26: =Mva_51 -> 0 | Q26: 0
B27: 52 | C27: Klipp | E27: =ROUND(Sum_52,0) -> 0 | G27: =Bokf52 -> 0 | H27: + | J27: + | K27: 0 | L27: = | M27: =ROUND(SumSK52,0) -> 0 | O27: =Mva_52 -> 0 | Q27: 0
B28: 53 | C28: Lydetterabeid | E28: =ROUND(Sum_53,0) -> 0 | G28: =Bokf53 -> 0 | H28: + | J28: + | K28: 0 | L28: = | M28: =ROUND(SumSK53,0) -> 0 | O28: =Mva_53 -> 0 | Q28: 0
B29: 54 | C29: Musikk | E29: =ROUND(Sum_54,0) -> 0 | G29: =Bokf54 -> 0 | H29: + | J29: + | K29: 0 | L29: = | M29: =ROUND(SumSK54,0) -> 0 | O29: =Mva_54 -> 0 | Q29: 0
B30: 55 | C30: Digitale effekter | E30: =ROUND(Sum_55,0) -> 0 | G30: =Bokf55 -> 0 | H30: + | J30: + | K30: 0 | L30: = | M30: =ROUND(SumSK55,0) -> 0 | O30: =Mva_55 -> 0 | Q30: 0
B31: 56 | C31: Bilde etterarbeid / laboratorium | E31: =ROUND(Sum_56,0) -> 0 | G31: =Bokf56 -> 0 | H31: + | J31: + | K31: 0 | L31: = | M31: =ROUND(SumSK56,0) -> 0 | O31: =Mva_56 -> 0 | Q31: 0
C32: TOTALE ETTERARBEIDSKOSTNADER | E32: =SUM(E26:E31) -> 0 | G32: =SUM(G26:G31) -> 0 | H32: + | I32: =SUM(I26:I31) -> 0 | J32: + | K32: =SUM(K26:K31) -> 0 | L32: = | M32: =SUM(M26:M31) -> 0 | Q32: 0
B33: 61 | C33: Administrasjon | E33: =ROUND(Sum_61,0) -> 0 | G33: =Bokf61 -> 0 | H33: + | J33: + | K33: =M33-G33-I33 -> 0 | L33: = | M33: =ROUND(SumSK61,0) -> 0 | Q33: 0
C34: NETTO PRODUKSJONSKOSTNADER | E34: =E10+E25+E32+E33 -> 0 | G34: =G10+G25+G32+G33 -> 0 | H34: + | I34: =I10+I25+I32+I33 -> 0 | J34: + | K34: =K10+K25+K32+K33 -> 0 | L34: = | M34: =M10+M25+M32+M33 -> 0 | Q34: 0
B35: 62 | C35: Uforutsette utgifter | E35: =ROUND(Sum_62,0) -> 0 | G35: =Bokf62 -> 0 | K35: =M35-G35-I35 -> 0 | M35: =IF(M34,IF(M34<E36,E36-M34,0),0) -> 0 | Q35: 0
C36: TOTALE PRODUKSJONSKOSTNADER | E36: =E34+E35 -> 0 | G36: =G34+G35 -> 0 | I36: =I34+I35 -> 0 | K36: =K34+K35 -> 0 | M36: =M34+M35 -> 0 | O36: =SumRKMER(O8:O32) ->  | Q36: =Q34+Q35 -> 0
C41: Revisorbekreftelse:

Sheet BOKFØRT
B3: BOKFØRT | C3: Bokført | E3: Bokført | G3: Bevegelse
C4: pr. | E4: pr. | G4: i perioden
B5: Dato: | C5: 2011-01-01 | E5: 2011-01-01
B6: Total: | C6: =Bokf10+Bokf11+Bokf21+Bokf31+Bokf32+Bokf33+Bokf34+Bokf35+Bokf36+Bokf37+Bokf38+Bokf39+Bokf40+Bokf41+Bokf42+Bokf44+Bokf51+Bokf52+Bokf53+Bokf54+Bokf55+Bokf56+Bokf61+Bokf62 -> 0 | E6: 0 | G6: =G33+G100+G151+G236+G262+G333+G372+G402+G435+G469+G511+G538+G559+G583+G641+G665+G708+G733+G772+G796+G825+G871+G930+G934 -> 0
A7: 10 MANUSKRIPTUTVIKLING
A8: 101010 | B8: FILMRETT (INKL. OPSJONER) | G8: =IF(E8<>C8,C8-E8,"") -> 
A9: 101011 | B9: SYNOPSIS | G9: =IF(E9<>C9,C9-E9,"") -> 
A10: 101012 | B10: TREATMENT
A11: 101013 | B11: MANUSKRIPT
A12: 101014 | B12: DIALOG
A13: 101019 | B13: UTSKRIVING
A14: 101110 | B14: PRODUSENT | G14: =IF(E14<>C14,C14-E14,"") -> 
A15: 101218 | B15: DRAMATURG
A16: 104010 | B16: KONSULENTER
A17: 104016 | B17: OVERSETTELSE
A18: 104090 | B18: ANNET PERSONALE
A19: 104091 | B19: - OVERTID ANNET PERSONALE
A20: 104095 | B20: SOSIALE UTGIFTER
A21: 109010 | B21: LEIE KONTORER
A22: 109013 | B22: PRØVEKINO/VIDEOPROJEKSJON
A23: 109022 | B23: KONTORREKVISITA
A24: 109029 | B24: MANGFOLDIGGJØRING
A25: 109060 | B25: BAKGRUNNSMATERIELL
A26: 109061 | B26: LEIE FILMER/VIDEO
A27: 109069 | B27: ANDRE KOSTNADER
A28: 109070 | B28: REISEUTGIFTER
A29: 109072 | B29: HOTELLOPPHOLD
A30: 109073 | B30: DAGPENGER/DIETTER
A31: 109078 | B31: MØTEKOSTNADER
A32: 109093 | B32: TAXI/BUDBIL
A33: . | C33: =SUM(C8:C32) -> 0 | E33: 0 | G33: =SUM(G8:G32) -> 0
A35: 11 PROSJEKTUTVIKLING
A36: 111015 | B36: EKSTRA TEKSTER (SANG ETC.) | G36: =IF(E36<>C36,C36-E36,"") -> 
A37: 111016 | B37: DREIEBOK
A38: 111017 | B38: STORYBOARD
A39: 111110 | B39: PRODUSENT
A40: 111116 | B40: PROSJEKTLEDER/LINE PRODUCER
A41: 111120 | B41: PRODUKSJONSLEDER
A42: 111124 | B42: PRODUKSJONSKOORDINATOR
A43: 111125 | B43: - OVERTID PROD. KOORDINATOR
A44: 111126 | B44: PRODUKSJONSSEKRETÆR
A45: 111127 | B45: - OVERTID PROD. SEKRETÆR
A46: 111130 | B46: PRODUKSJONSASSISTENTER
A47: 111131 | B47: - OVERTID PROD. ASSISTENTER
A48: 111140 | B48: LOCATION RESEARCH
A49: 111141 | B49: - OVERTID LOCATION RESEARCH
A50: 111210 | B50: REGISSØR
A51: 111214 | B51: REGIASSISTENT
A52: 111215 | B52: - OVERTID REGIASSISTENT
A53: 111310 | B53: PRODUCTION DESIGNER
A54: 111311 | B54: - OVERTID PRODUCTION DESIGNER
A55: 111610 | B55: KOSTYMEDESIGNER
A56: 111611 | B56: - OVERTID KOSTYMEDESIGNER
A57: 111810 | B57: SJEFSFOTOGRAF
A58: 111811 | B58: - OVERTID SJEFSFOTOGRAF
A59: 113210 | B59: LYDDESIGNER
A60: 113211 | B60: - OVERTID LYDDESIGNER
A61: 114010 | B61: KONSULENTER
A62: 114014 | B62: TOLK
A63: 114015 | B63: - OVERTID TOLK
A64: 114090 | B64: ANNET PERSONALE
A65: 114091 | B65: - OVERTID ANNET PERSONALE
A66: 114092 | B66: TARIFFJUSTERINGER
A67: 114095 | B67: SOSIALE UTGIFTER
A68: 116110 | B68: BREAK DOWN/PRODUKSJONSPLAN
A69: 116111 | B69: KALKYLE
A70: 116112 | B70: ADMINISTRASJONSGODTGJØRELSE | G70: =IF(E70<>C70,C70-E70,"") -> 
A71: 118620 | B71: REGNSKAP
A72: 118621 | B72: REVISJON
A73: 118622 | B73: JURIDISK ASSISTANSE
A74: 119010 | B74: LEIE KONTORER
A75: 119013 | B75: PRØVEKINO/VIDEOPROJEKSJON
A76: 119022 | B76: KONTORREKVISITA
A77: 119025 | B77: PROGRAMVARE
A78: 119029 | B78: MANGFOLDIGGJØRING
A79: 119030 | B79: TELEFON/PORTO
A80: 119040 | B80: POLAROID/ARBEIDSTILLS
A81: 119042 | B81: VIDEOUTSTYR
A82: 119044 | B82: VIDEOTAPE
A83: 119060 | B83: BAKGRUNNSMATERIELL
A84: 119061 | B84: LEIE FILMER/VIDEO
A85: 119069 | B85: ANDRE KOSTNADER
A86: 119070 | B86: REISEUTGIFTER
A87: 119072 | B87: HOTELLOPPHOLD
A88: 119073 | B88: DAGPENGER/DIETTER
A89: 119077 | B89: MAT V/OVERTID
A90: 119078 | B90: MØTEKOSTNADER
A91: 119081 | B91: LEIDE BILER
A92: 119082 | B92: SKADER LEIDE BILER
A93: 119083 | B93: BENSIN/OLJE ETC.
A94: 119084 | B94: PARKERING/BOM/FERGER
A95: 119085 | B95: BILGODTGJØRELSE
A96: 119090 | B96: LEID TRANSPORT
A97: 119091 | B97: LEIE AV HELIKOPTER/FLY
A98: 119092 | B98: LEIE BÅT/SNØSCOOTER ETC.
A99: 119093 | B99: TAXI/BUDBIL
A100: . | C100: =SUM(C36:C99) -> 0 | E100: 0 | G100: =SUM(G36:G99) -> 0
A102: 21 FORARBEID
A103: 211116 | B103: PROSJEKTLEDER/LINE PRODUCER | G103: =IF(E103<>C103,C103-E103,"") -> 
A104: 211120 | B104: PRODUKSJONSLEDER
A105: 211124 | B105: PRODUKSJONSKOORDINATOR
A106: 211125 | B106: - OVERTID PROD. KOORDINATOR
A107: 211126 | B107: PRODUKSJONSSEKRETÆR
A108: 211127 | B108: - OVERTID PROD. SEKRETÆR
A109: 211130 | B109: PRODUKSJONSASSISTENTER
A110: 211131 | B110: - OVERTID PROD. ASSISTENTER
A111: 211140 | B111: LOCATION RESEARCH
A112: 211141 | B112: - OVERTID LOCATION RESEARCH
A113: 211210 | B113: REGISSØR
A114: 211214 | B114: REGIASSISTENT
A115: 211215 | B115: - OVERTID REGIASSISTENT
A116: 211240 | B116: CASTING
A117: 211241 | B117: - OVERTID CASTING
A118: 211310 | B118: PRODUCTION DESIGNER
A119: 211311 | B119: - OVERTID PRODUCTION DESIGNER
A120: 211610 | B120: KOSTYMEDESIGNER
A121: 211611 | B121: - OVERTID KOSTYMEDESIGNER
A122: 211810 | B122: SJEFSFOTOGRAF
A123: 211811 | B123: - OVERTID SJEFSFOTOGRAF
A124: 213210 | B124: LYDDESIGNER
A125: 213211 | B125: - OVERTID LYDDESIGNER
A126: 214010 | B126: KONSULENTER
A127: 214014 | B127: TOLK
A128: 214015 | B128: - OVERTID TOLK
A129: 214090 | B129: ANNET PERSONALE
A130: 214091 | B130: - OVERTID ANNET PERSONALE
A131: 214092 | B131: TARIFFJUSTERINGER
A132: 214095 | B132: SOSIALE UTGIFTER
A133: 218622 | B133: JURIDISK ASSISTANSE
A134: 219010 | B134: LEIE KONTORER
A135: 219013 | B135: PRØVEKINO/VIDEOPROJEKSJON
A136: 219014 | B136: LOKALER PRØVEFILM/PRØVER
A137: 219022 | B137: KONTORREKVISITA
A138: 219023 | B138: DATAUTSTYR
A139: 219025 | B139: PROGRAMVARE
A140: 219029 | B140: MANGFOLDIGGJØRING
A141: 219030 | B141: TELEFON/PORTO
A142: 219040 | B142: ARBEIDSTILLS
A143: 219042 | B143: VIDEOUTSTYR
A144: 219044 | B144: VIDEOTAPE
A145: 219060 | B145: BAKGRUNNSMATERIELL
A146: 219061 | B146: LEIE FILMER/VIDEO
A147: 219063 | B147: ANNONSERING
A148: 219069 | B148: ANDRE KOSTNADER
A149: 219077 | B149: MAT V/OVERTID
A150: 219078 | B150: MØTEKOSTNADER
A151: . | C151: =SUM(C103:C150) -> 0 | E151: 0 | G151: =SUM(G103:G150) -> 0
A153: 31 PRODUKSJON
A154: 311116 | B154: PROSJEKTLEDER/LINE PRODUCER | G154: =IF(E154<>C154,C154-E154,"") -> 
A155: 311120 | B155: PRODUKSJONSLEDER
A156: 311122 | B156: B-PRODUKSJONSLEDER
A157: 311123 | B157: - OVERTID B-PROD. LEDER
A158: 311124 | B158: PRODUKSJONSKOORDINATOR
A159: 311125 | B159: - OVERTID PROD. KOORDINATOR
A160: 311126 | B160: PRODUKSJONSSEKRETÆR
A161: 311127 | B161: - OVERTID PROD. SEKRETÆR
A162: 311130 | B162: PRODUKSJONSASSISTENTER
A163: 311131 | B163: - OVERTID PROD. ASSISTENTER
A164: 311142 | B164: LOCATION MANAGER
A165: 311143 | B165: - OVERTID LOCATION MANAGER
A166: 311150 | B166: INNSPILLINGSLEDER
A167: 311151 | B167: - OVERTID INNSPILLINGSLEDER
A168: 311152 | B168: INNSPILLINGSASSISTENTER
A169: 311153 | B169: - OVERTID INNSP. ASSISTENTER
A170: 311170 | B170: PRODUKSJONSBOKHOLDER
A171: 311171 | B171: - OVERTID PROD. BOKHOLDER
A172: 311180 | B172: CATERINGPERSONALE
A173: 311181 | B173: - OVERTID CATERINGPERSONALE
A174: 311190 | B174: ANNET PRODUKSJONSPERSONALE
A175: 311191 | B175: - OVERTID ANNET PROD. PERS.
A176: 313720 | B176: PRESSEMEDARBEIDER
A177: 313721 | B177: - OVERTID PRESSEMEDARBEIDER
A178: 314010 | B178: KONSULENTER
A179: 314012 | B179: LÆRER/BARNEVAKT
A180: 314013 | B180: - OVERTID LÆRER/BARNEVAKT
A181: 314014 | B181: TOLK
A182: 314015 | B182: - OVERTID TOLK
A183: 314020 | B183: POLITIASSISTANSE
A184: 314022 | B184: VAKTHOLD
A185: 314023 | B185: - OVERTID VAKTHOLD
A186: 314030 | B186: LOKAL ASSISTANSE
A187: 314031 | B187: - OVERTID LOKAL ASSISTANSE
A188: 314040 | B188: HOSPITANTER
A189: 314041 | B189: - OVERTID HOSPITANTER
A190: 314050 | B190: TILLITSVALGT
A191: 314052 | B191: VERNEOMBUD
A192: 314090 | B192: ANNET PERSONALE
A193: 314091 | B193: - OVERTID ANNET PERSONALE
A194: 314092 | B194: TARIFFJUSTERINGER
A195: 314095 | B195: SOSIALE UTGIFTER
A196: 316122 | B196: LEIE GARDEROBER
A197: 316130 | B197: LOCATIONLEIE
A198: 316131 | B198: OPPHOLDSROM LOCATION
A199: 316132 | B199: TOILETTVOGN
A200: 316133 | B200: LOC. BUSS/CAMPINGVOGN/HUSBIL
A201: 316134 | B201: VISNINGSUTSTYR/LOKAL KINO
A202: 316135 | B202: LOCATIONUTSTYR | G202: =IF(E202<>C202,C202-E202,"") -> 
A203: 316138 | B203: SKILTING/PARKERINGSRESERVERING
A204: 316140 | B204: MEDISINSK BEHANDLING
A205: 316141 | B205: SPESIALBEKLEDNING STAB
... 709 more rows

Sheet LISTE (hidden)
B1: Liste | E1: Koblet celle
A2: 1 | B2: FORSIDE | C2: FOR | D2: Indexnummer for valgt "Gå til": | E2: 1 | F2: =område: | G2: =INDEX(C5:C29,E2) -> start
A3: 2 | B3: FORUTSETNINGER | C3: PRE | D3: Indexnummer for valgt "Skriv ut": | E3: 19 | F3: =område: | G3: =INDEX(C6:C29,E3) -> UT_53
A4: 3 | B4: SAMMENDRAG | C4: SAM
A5: 4 | B5: Velg her | C5: start
A6: 5 | B6: 10 MANUSKRIPTUTVIKLING | C6: UT_10
A7: 6 | B7: 11 PROSJEKTUTVIKLING | C7: UT_11
A8: 7 | B8: 21 FORARBEID | C8: UT_21
A9: 8 | B9: 31 PRODUKSJON | C9: UT_31
A10: 9 | B10: 32 REGI | C10: UT_32
A11: 10 | B11: 33 DEKOR | C11: UT_33
A12: 11 | B12: 34 REKVISITTER | C12: UT_34
A13: 12 | B13: 35 SPECIAL EFFECTS | C13: UT_35
A14: 13 | B14: 36 KOSTYME | C14: UT_36
A15: 14 | B15: 37 SMINKE | C15: UT_37
A16: 15 | B16: 38 FOTO | C16: UT_38
A17: 16 | B17: 39 LYS | C17: UT_39
A18: 17 | B18: 40 GRIP | C18: UT_40
A19: 18 | B19: 41 OPPTAKSLYD | C19: UT_41
A20: 19 | B20: 42 SKUESPILLERE | C20: UT_42
A21: 20 | B21: 44 REISER/TRANSPORT | C21: UT_44
A22: 21 | B22: 51 PRODUKSJON ETTERARB. | C22: UT_51
A23: 22 | B23: 52 KLIPP | C23: UT_52
A24: 23 | B24: 53 LYDETTERARBEID | C24: UT_53
A25: 24 | B25: 54 MUSIKK | C25: UT_54
A26: 25 | B26: 55 DIGITALE EFFEKTER | C26: UT_55
A27: 26 | B27: 56 LABORATORIUM | C27: UT_56
A28: 27 | B28: 61 ADMINISTRASJON | C28: UT_61
A29: 28 | B29: 62 UFORUTSETTE UTGIFTER | C29: UT_62
A30: 29
B33: Verdier for utskriftsboks
B34: Kalkyle | C34: FALSE | D34: nokalk
B35: Forside | C35: FALSE | D35: nofor
B36: Premisser | C36: FALSE | D36: nopre
B37: Sammendrag | C37: FALSE | D37: nosam
B38: Estimat | C38: FALSE | D38: skkalk
B39: Estimat sammendrag | C39: FALSE | D39: sksam
B40: Likviditetsplan | C40: FALSE | D40: likvid
B41: Rapport | C41: FALSE | D41: rapp
